{"text_format":"1","workbook":"xlsx","n_sheets":4,"sheets":["Bestelformulier","Instructies","Productiebestand","Artikelen"],"not_rendered":{"charts":0,"images":11,"macros":1,"external_links":0,"defined_names":35,"comments":0,"pivot_tables":0},"unopened":[],"bounds":{"document_bytes":16777216,"sheet_cells":100000,"rows_first":2000,"rows_last":500,"rows_between":2000,"halvings":0,"cell_chars":16384,"cell_head_chars":4096},"cells_cut":0,"cells_raw":0,"read":"whole","date_system":"1900"}

{"sheet":"Bestelformulier","index":0,"n_rows":523,"n_cols":29,"rows_kept":523,"cut":false,"hidden":false,"merged":[[0,0,1,17],[21,0,21,2],[6,14,6,17],[7,14,7,17],[8,14,8,17],[9,14,9,17],[10,14,10,17],[6,11,6,13],[7,11,7,13],[8,11,8,13],[9,11,9,13],[10,11,10,13],[21,3,21,5],[21,6,21,9],[10,6,10,9],[9,6,9,9],[14,18,14,19],[21,10,21,28],[12,11,12,12],[13,11,13,12],[14,11,14,12],[15,11,15,12],[12,13,12,16],[13,13,13,16],[14,13,14,16],[15,13,15,16],[9,1,9,5],[10,1,10,5],[12,1,12,9],[13,1,15,9],[3,6,3,9],[4,6,4,9],[5,6,5,9],[3,1,3,5],[4,1,4,5],[5,1,5,5],[6,1,6,5],[7,1,7,5],[8,1,8,5],[6,6,6,9],[7,6,7,9],[8,6,8,9],[3,11,3,13],[4,11,4,13],[3,14,3,17],[4,14,4,17],[5,11,5,13],[5,15,5,17]]}
["Bestelformulier logoplaatjes 100x50mm"]
[]
[]
[null,"N.A.W. Gegevens",null,null,null,null,null,null,null,null,null,"Uw referentie:"]
[null,"Firmanaam:",null,null,null,null,null,null,null,null,null,"Gewenste leverdatum:"]
[null,"Contactpersoon:"]
[null,"Emailadres:",null,null,null,null,null,null,null,null,null,"Afleveradres:"]
[null,"Adres:",null,null,null,null,null,null,null,null,null,"Firmanaam:"]
[null,"Postcode:",null,null,null,null,null,null,null,null,null,"Adres:"]
[null,"Vestigingsplaats:",null,null,null,null,null,null,null,null,null,"Postcode:"]
[null,"Telefoonnummer:",null,null,null,null,null,null,null,null,null,"Vestigingsplaats:"]
[]
[null,"Opmerkingen",null,null,null,null,null,null,null,null,null,"Artikel",null,"Bestelnummer",null,null,null,"Aantal"]
[null,null,null,null,null,null,null,null,null,null,null,"Houders",null,null,null,null,null,null,null,{"$f":"IF(ISBLANK(N14),\"\",IF(ISBLANK(R14),\"<- Vul a.u.b. aantal in\",\"\"))","v":""}]
[null,null,null,null,null,null,null,null,null,null,null,"Spanbanden",null,null,null,null,null,null,{"$f":"IF(ISBLANK(N15),\"\",IF(ISBLANK(R15),\"<- Vul a.u.b. aantal in\",\"\"))","v":""}]
[null,null,null,null,null,null,null,null,null,null,null,"Sluitgespen",null,null,null,null,null,null,null,{"$f":"IF(ISBLANK(N16),\"\",IF(ISBLANK(R16),\"<- Vul a.u.b. aantal in\",\"\"))","v":""}]
[]
[]
[]
[]
[]
[null,null,null,"Afmeting",null,null,"Montage",null,null,null,"Tekstregels"]
["Volgnr.","Aantal","Logo (plaats x)","Lengte (mm)",null,"Hoogte (mm)","Kleeflaag (plaats x)","Boorgaten (plaats x)","Aantal boorgaten","Diameter boorgaten Ø","Algemene letterhoogte (mm)",1,"Letterhoogte tekstregel 1",2,"Letterhoogte tekstregel 2",3,"Letterhoogte tekstregel 3",4,"Letterhoogte tekstregel 4",5,"Letterhoogte tekstregel 5",6,"Letterhoogte tekstrege l6",7,"Letterhoogte tekstregel 7",8,"Letterhoogte tekstregel 8",9,"Letterhoogte tekstregel 9"]
[1,null,null,100,{"$f":"IF(ISBLANK(D24),\"\",\"x\")","v":"x"},50,null,null,null,null,null,null,{"$f":"IF(ISBLANK(K24),\"\",K24)","v":""},null,{"$f":"IF(ISBLANK(K24),\"\",K24)","v":""},null,{"$f":"IF(ISBLANK(K24),\"\",K24)","v":""},null,{"$f":"IF(ISBLANK(K24),\"\",K24)","v":""},null,{"$f":"IF(ISBLANK(K24),\"\",K24)","v":""},null,{"$f":"IF(ISBLANK(K24),\"\",K24)","v":""},null,{"$f":"IF(ISBLANK(K24),\"\",K24)","v":""},null,{"$f":"IF(ISBLANK(K24),\"\",K24)","v":""},null,{"$f":"IF(ISBLANK(K24),\"\",K24)","v":""}]
[2,null,null,100,"x",50,null,null,null,null,null,null,"",null,"",null,"",null,"",null,"",null,"",null,"",null,"",null,""]
[3,null,null,100,"x",50,null,null,null,null,null,null,"",null,"",null,"",null,"",null,"",null,"",null,"",null,"",null,""]
[4,null,null,100,"x",50,null,null,null,null,null,null,"",null,"",null,"",null,"",null,"",null,"",null,"",null,"",null,""]
[5,null,null,100,"x",50,null,null,null,null,null,null,"",null,"",null,"",null,"",null,"",null,"",null,"",null,"",null,""]
[6,null,null,100,"x",50,null,null,null,null,null,null,"",null,"",null,"",null,"",null,"",null,"",null,"",null,"",null,""]
[7,null,null,100,"x",50,null,null,null,null,null,null,"",null,"",null,"",null,"",null,"",null,"",null,"",null,"",null,""]
[8,null,null,100,"x",50,null,null,null,null,null,null,"",null,"",null,"",null,"",null,"",null,"",null,"",null,"",null,""]
[9,null,null,100,"x",50,null,null,null,null,null,null,"",null,"",null,"",null,"",null,"",null,"",null,"",null,"",null,""]
[10,null,null,100,"x",50,null,null,null,null,null,null,"",null,"",null,"",null,"",null,"",null,"",null,"",null,"",null,""]
[{"$f":"IF(OR(NOT(ISBLANK(B33)),NOT(ISBLANK(C33)),NOT(ISBLANK(G33)),NOT(ISBLANK(H33)),NOT(ISBLANK(I33)),NOT(ISBLANK(J33)),NOT(ISBLANK(K33)),NOT(ISBLANK(L33)),NOT(ISBLANK(N33)),NOT(ISBLANK(P33)),NOT(ISBLANK(R33)),NOT(ISBLANK(T33)),NOT(ISBLANK(V33)),NOT(ISBLANK(X33)),NOT(ISBLANK(Z33)),NOT(ISBLANK(AB33))),ROW(A34)-ROW(Label.Aantal),\"\")","v":""},null,null,{"$f":"IF(OR(NOT(ISBLANK(B33)),NOT(ISBLANK(C33)),NOT(ISBLANK(G33)),NOT(ISBLANK(H33)),NOT(ISBLANK(I33)),NOT(ISBLANK(J33)),NOT(ISBLANK(K33)),NOT(ISBLANK(L33)),NOT(ISBLANK(N33)),NOT(ISBLANK(P33)),NOT(ISBLANK(R33)),NOT(ISBLANK(T33)),NOT(ISBLANK(V33)),NOT(ISBLANK(X33)),NOT(ISBLANK(Z33)),NOT(ISBLANK(AB33))),100,\"\")","v":""},{"$f":"IF(OR(NOT(ISBLANK(B33)),NOT(ISBLANK(C33)),NOT(ISBLANK(G33)),NOT(ISBLANK(H33)),NOT(ISBLANK(I33)),NOT(ISBLANK(J33)),NOT(ISBLANK(K33)),NOT(ISBLANK(L33)),NOT(ISBLANK(N33)),NOT(ISBLANK(P33)),NOT(ISBLANK(R33)),NOT(ISBLANK(T33)),NOT(ISBLANK(V33)),NOT(ISBLANK(X33)),NOT(ISBLANK(Z33)),NOT(ISBLANK(AB33))),\"x\",\"\")","v":""},{"$f":"IF(OR(NOT(ISBLANK(B33)),NOT(ISBLANK(C33)),NOT(ISBLANK(G33)),NOT(ISBLANK(H33)),NOT(ISBLANK(I33)),NOT(ISBLANK(J33)),NOT(ISBLANK(K33)),NOT(ISBLANK(L33)),NOT(ISBLANK(N33)),NOT(ISBLANK(P33)),NOT(ISBLANK(R33)),NOT(ISBLANK(T33)),NOT(ISBLANK(V33)),NOT(ISBLANK(X33)),NOT(ISBLANK(Z33)),NOT(ISBLANK(AB33))),50,\"\")","v":""},null,null,null,null,null,null,"",null,"",null,"",null,"",null,"",null,"",null,"",null,"",null,""]
["",null,null,"","","",null,null,null,null,null,null,"",null,"",null,"",null,"",null,"",null,"",null,"",null,"",null,""]
["",null,null,"","","",null,null,null,null,null,null,"",null,"",null,"",null,"",null,"",null,"",null,"",null,"",null,""]
["",null,null,"","","",null,null,null,null,null,null,"",null,"",null,"",null,"",null,"",null,"",null,"",null,"",null,""]
["",null,null,"","","",null,null,null,null,null,null,"",null,"",null,"",null,"",null,"",null,"",null,"",null,"",null,""]
["",null,null,"","","",null,null,null,null,null,null,"",null,"",null,"",null,"",null,"",null,"",null,"",null,"",null,""]
["",null,null,"","","",null,null,null,null,null,null,"",null,"",null,"",null,"",null,"",null,"",null,"",null,"",null,""]
["",null,null,"","","",null,null,null,null,null,null,"",null,"",null,"",null,"",null,"",null,"",null,"",null,"",null,""]
["",null,null,"","","",null,null,null,null,null,null,"",null,"",null,"",null,"",null,"",null,"",null,"",null,"",null,""]
["",null,null,"","","",null,null,null,null,null,null,"",null,"",null,"",null,"",null,"",null,"",null,"",null,"",null,""]
["",null,null,"","","",null,null,null,null,null,null,"",null,"",null,"",null,"",null,"",null,"",null,"",null,"",null,""]
["",null,null,"","","",null,null,null,null,null,null,"",null,"",null,"",null,"",null,"",null,"",null,"",null,"",null,""]
["",null,null,"","","",null,null,null,null,null,null,"",null,"",null,"",null,"",null,"",null,"",null,"",null,"",null,""]
["",null,null,"","","",null,null,null,null,null,null,"",null,"",null,"",null,"",null,"",null,"",null,"",null,"",null,""]
["",null,null,"","","",null,null,null,null,null,null,"",null,"",null,"",null,"",null,"",null,"",null,"",null,"",null,""]
["",null,null,"","","",null,null,null,null,null,null,"",null,"",null,"",null,"",null,"",null,"",null,"",null,"",null,""]
["",null,null,"","","",null,null,null,null,null,null,"",null,"",null,"",null,"",null,"",null,"",null,"",null,"",null,""]
["",null,null,"","","",null,null,null,null,null,null,"",null,"",null,"",null,"",null,"",null,"",null,"",null,"",null,""]
["",null,null,"","","",null,null,null,null,null,null,"",null,"",null,"",null,"",null,"",null,"",null,"",null,"",null,""]
["",null,null,"","","",null,null,null,null,null,null,"",null,"",null,"",null,"",null,"",null,"",null,"",null,"",null,""]
["",null,null,"","","",null,null,null,null,null,null,"",null,"",null,"",null,"",null,"",null,"",null,"",null,"",null,""]
["",null,null,"","","",null,null,null,null,null,null,"",null,"",null,"",null,"",null,"",null,"",null,"",null,"",null,""]
["",null,null,"","","",null,null,null,null,null,null,"",null,"",null,"",null,"",null,"",null,"",null,"",null,"",null,""]
["",null,null,"","","",null,null,null,null,null,null,"",null,"",null,"",null,"",null,"",null,"",null,"",null,"",null,""]
["",null,null,"","","",null,null,null,null,null,null,"",null,"",null,"",null,"",null,"",null,"",null,"",null,"",null,""]
["",null,null,"","","",null,null,null,null,null,null,"",null,"",null,"",null,"",null,"",null,"",null,"",null,"",null,""]
["",null,null,"","","",null,null,null,null,null,null,"",null,"",null,"",null,"",null,"",null,"",null,"",null,"",null,""]
["",null,null,"","","",null,null,null,null,null,null,"",null,"",null,"",null,"",null,"",null,"",null,"",null,"",null,""]
["",null,null,"","","",null,null,null,null,null,null,"",null,"",null,"",null,"",null,"",null,"",null,"",null,"",null,""]
["",null,null,"","","",null,null,null,null,null,null,"",null,"",null,"",null,"",null,"",null,"",null,"",null,"",null,""]
["",null,null,"","","",null,null,null,null,null,null,"",null,"",null,"",null,"",null,"",null,"",null,"",null,"",null,""]
["",null,null,"","","",null,null,null,null,null,null,"",null,"",null,"",null,"",null,"",null,"",null,"",null,"",null,""]
["",null,null,"","","",null,null,null,null,null,null,"",null,"",null,"",null,"",null,"",null,"",null,"",null,"",null,""]
["",null,null,"","","",null,null,null,null,null,null,"",null,"",null,"",null,"",null,"",null,"",null,"",null,"",null,""]
["",null,null,"","","",null,null,null,null,null,null,"",null,"",null,"",null,"",null,"",null,"",null,"",null,"",null,""]
["",null,null,"","","",null,null,null,null,null,null,"",null,"",null,"",null,"",null,"",null,"",null,"",null,"",null,""]
["",null,null,"","","",null,null,null,null,null,null,"",null,"",null,"",null,"",null,"",null,"",null,"",null,"",null,""]
["",null,null,"","","",null,null,null,null,null,null,"",null,"",null,"",null,"",null,"",null,"",null,"",null,"",null,""]
["",null,null,"","","",null,null,null,null,null,null,"",null,"",null,"",null,"",null,"",null,"",null,"",null,"",null,""]
["",null,null,"","","",null,null,null,null,null,null,"",null,"",null,"",null,"",null,"",null,"",null,"",null,"",null,""]
["",null,null,"","","",null,null,null,null,null,null,"",null,"",null,"",null,"",null,"",null,"",null,"",null,"",null,""]
["",null,null,"","","",null,null,null,null,null,null,"",null,"",null,"",null,"",null,"",null,"",null,"",null,"",null,""]
["",null,null,"","","",null,null,null,null,null,null,"",null,"",null,"",null,"",null,"",null,"",null,"",null,"",null,""]
["",null,null,"","","",null,null,null,null,null,null,"",null,"",null,"",null,"",null,"",null,"",null,"",null,"",null,""]
["",null,null,"","","",null,null,null,null,null,null,"",null,"",null,"",null,"",null,"",null,"",null,"",null,"",null,""]
["",null,null,"","","",null,null,null,null,null,null,"",null,"",null,"",null,"",null,"",null,"",null,"",null,"",null,""]
["",null,null,"","","",null,null,null,null,null,null,"",null,"",null,"",null,"",null,"",null,"",null,"",null,"",null,""]
["",null,null,"","","",null,null,null,null,null,null,"",null,"",null,"",null,"",null,"",null,"",null,"",null,"",null,""]
["",null,null,"","","",null,null,null,null,null,null,"",null,"",null,"",null,"",null,"",null,"",null,"",null,"",null,""]
["",null,null,"","","",null,null,null,null,null,null,"",null,"",null,"",null,"",null,"",null,"",null,"",null,"",null,""]
["",null,null,"","","",null,null,null,null,null,null,"",null,"",null,"",null,"",null,"",null,"",null,"",null,"",null,""]
["",null,null,"","","",null,null,null,null,null,null,"",null,"",null,"",null,"",null,"",null,"",null,"",null,"",null,""]
["",null,null,"","","",null,null,null,null,null,null,"",null,"",null,"",null,"",null,"",null,"",null,"",null,"",null,""]
["",null,null,"","","",null,null,null,null,null,null,"",null,"",null,"",null,"",null,"",null,"",null,"",null,"",null,""]
["",null,null,"","","",null,null,null,null,null,null,{"$f":"IF(ISBLANK(K88),\"\",K88)","v":""},null,{"$f":"IF(ISBLANK(K88),\"\",K88)","v":""},null,{"$f":"IF(ISBLANK(K88),\"\",K88)","v":""},null,{"$f":"IF(ISBLANK(K88),\"\",K88)","v":""},null,{"$f":"IF(ISBLANK(K88),\"\",K88)","v":""},null,{"$f":"IF(ISBLANK(K88),\"\",K88)","v":""},null,{"$f":"IF(ISBLANK(K88),\"\",K88)","v":""},null,{"$f":"IF(ISBLANK(K88),\"\",K88)","v":""},null,{"$f":"IF(ISBLANK(K88),\"\",K88)","v":""}]
["",null,null,"","","",null,null,null,null,null,null,"",null,"",null,"",null,"",null,"",null,"",null,"",null,"",null,""]
["",null,null,"","","",null,null,null,null,null,null,"",null,"",null,"",null,"",null,"",null,"",null,"",null,"",null,""]
["",null,null,"","","",null,null,null,null,null,null,"",null,"",null,"",null,"",null,"",null,"",null,"",null,"",null,""]
["",null,null,"","","",null,null,null,null,null,null,"",null,"",null,"",null,"",null,"",null,"",null,"",null,"",null,""]
["",null,null,"","","",null,null,null,null,null,null,"",null,"",null,"",null,"",null,"",null,"",null,"",null,"",null,""]
["",null,null,"","","",null,null,null,null,null,null,"",null,"",null,"",null,"",null,"",null,"",null,"",null,"",null,""]
["",null,null,"","","",null,null,null,null,null,null,"",null,"",null,"",null,"",null,"",null,"",null,"",null,"",null,""]
["",null,null,"","","",null,null,null,null,null,null,"",null,"",null,"",null,"",null,"",null,"",null,"",null,"",null,""]
["",null,null,"","","",null,null,null,null,null,null,"",null,"",null,"",null,"",null,"",null,"",null,"",null,"",null,""]
[{"$f":"IF(OR(NOT(ISBLANK(B97)),NOT(ISBLANK(C97)),NOT(ISBLANK(G97)),NOT(ISBLANK(H97)),NOT(ISBLANK(I97)),NOT(ISBLANK(J97)),NOT(ISBLANK(K97)),NOT(ISBLANK(L97)),NOT(ISBLANK(N97)),NOT(ISBLANK(P97)),NOT(ISBLANK(R97)),NOT(ISBLANK(T97)),NOT(ISBLANK(V97)),NOT(ISBLANK(X97)),NOT(ISBLANK(Z97)),NOT(ISBLANK(AB97))),ROW(A98)-ROW(Label.Aantal),\"\")","v":""},null,null,{"$f":"IF(OR(NOT(ISBLANK(B97)),NOT(ISBLANK(C97)),NOT(ISBLANK(G97)),NOT(ISBLANK(H97)),NOT(ISBLANK(I97)),NOT(ISBLANK(J97)),NOT(ISBLANK(K97)),NOT(ISBLANK(L97)),NOT(ISBLANK(N97)),NOT(ISBLANK(P97)),NOT(ISBLANK(R97)),NOT(ISBLANK(T97)),NOT(ISBLANK(V97)),NOT(ISBLANK(X97)),NOT(ISBLANK(Z97)),NOT(ISBLANK(AB97))),100,\"\")","v":""},{"$f":"IF(OR(NOT(ISBLANK(B97)),NOT(ISBLANK(C97)),NOT(ISBLANK(G97)),NOT(ISBLANK(H97)),NOT(ISBLANK(I97)),NOT(ISBLANK(J97)),NOT(ISBLANK(K97)),NOT(ISBLANK(L97)),NOT(ISBLANK(N97)),NOT(ISBLANK(P97)),NOT(ISBLANK(R97)),NOT(ISBLANK(T97)),NOT(ISBLANK(V97)),NOT(ISBLANK(X97)),NOT(ISBLANK(Z97)),NOT(ISBLANK(AB97))),\"x\",\"\")","v":""},{"$f":"IF(OR(NOT(ISBLANK(B97)),NOT(ISBLANK(C97)),NOT(ISBLANK(G97)),NOT(ISBLANK(H97)),NOT(ISBLANK(I97)),NOT(ISBLANK(J97)),NOT(ISBLANK(K97)),NOT(ISBLANK(L97)),NOT(ISBLANK(N97)),NOT(ISBLANK(P97)),NOT(ISBLANK(R97)),NOT(ISBLANK(T97)),NOT(ISBLANK(V97)),NOT(ISBLANK(X97)),NOT(ISBLANK(Z97)),NOT(ISBLANK(AB97))),50,\"\")","v":""},null,null,null,null,null,null,"",null,"",null,"",null,"",null,"",null,"",null,"",null,"",null,""]
["",null,null,"","","",null,null,null,null,null,null,"",null,"",null,"",null,"",null,"",null,"",null,"",null,"",null,""]
["",null,null,"","","",null,null,null,null,null,null,"",null,"",null,"",null,"",null,"",null,"",null,"",null,"",null,""]
["",null,null,"","","",null,null,null,null,null,null,"",null,"",null,"",null,"",null,"",null,"",null,"",null,"",null,""]
["",null,null,"","","",null,null,null,null,null,null,"",null,"",null,"",null,"",null,"",null,"",null,"",null,"",null,""]
["",null,null,"","","",null,null,null,null,null,null,"",null,"",null,"",null,"",null,"",null,"",null,"",null,"",null,""]
["",null,null,"","","",null,null,null,null,null,null,"",null,"",null,"",null,"",null,"",null,"",null,"",null,"",null,""]
["",null,null,"","","",null,null,null,null,null,null,"",null,"",null,"",null,"",null,"",null,"",null,"",null,"",null,""]
["",null,null,"","","",null,null,null,null,null,null,"",null,"",null,"",null,"",null,"",null,"",null,"",null,"",null,""]
["",null,null,"","","",null,null,null,null,null,null,"",null,"",null,"",null,"",null,"",null,"",null,"",null,"",null,""]
["",null,null,"","","",null,null,null,null,null,null,"",null,"",null,"",null,"",null,"",null,"",null,"",null,"",null,""]
["",null,null,"","","",null,null,null,null,null,null,"",null,"",null,"",null,"",null,"",null,"",null,"",null,"",null,""]
["",null,null,"","","",null,null,null,null,null,null,"",null,"",null,"",null,"",null,"",null,"",null,"",null,"",null,""]
["",null,null,"","","",null,null,null,null,null,null,"",null,"",null,"",null,"",null,"",null,"",null,"",null,"",null,""]
["",null,null,"","","",null,null,null,null,null,null,"",null,"",null,"",null,"",null,"",null,"",null,"",null,"",null,""]
["",null,null,"","","",null,null,null,null,null,null,"",null,"",null,"",null,"",null,"",null,"",null,"",null,"",null,""]
["",null,null,"","","",null,null,null,null,null,null,"",null,"",null,"",null,"",null,"",null,"",null,"",null,"",null,""]
["",null,null,"","","",null,null,null,null,null,null,"",null,"",null,"",null,"",null,"",null,"",null,"",null,"",null,""]
["",null,null,"","","",null,null,null,null,null,null,"",null,"",null,"",null,"",null,"",null,"",null,"",null,"",null,""]
["",null,null,"","","",null,null,null,null,null,null,"",null,"",null,"",null,"",null,"",null,"",null,"",null,"",null,""]
["",null,null,"","","",null,null,null,null,null,null,"",null,"",null,"",null,"",null,"",null,"",null,"",null,"",null,""]
["",null,null,"","","",null,null,null,null,null,null,"",null,"",null,"",null,"",null,"",null,"",null,"",null,"",null,""]
["",null,null,"","","",null,null,null,null,null,null,"",null,"",null,"",null,"",null,"",null,"",null,"",null,"",null,""]
["",null,null,"","","",null,null,null,null,null,null,"",null,"",null,"",null,"",null,"",null,"",null,"",null,"",null,""]
["",null,null,"","","",null,null,null,null,null,null,"",null,"",null,"",null,"",null,"",null,"",null,"",null,"",null,""]
["",null,null,"","","",null,null,null,null,null,null,"",null,"",null,"",null,"",null,"",null,"",null,"",null,"",null,""]
["",null,null,"","","",null,null,null,null,null,null,"",null,"",null,"",null,"",null,"",null,"",null,"",null,"",null,""]
["",null,null,"","","",null,null,null,null,null,null,"",null,"",null,"",null,"",null,"",null,"",null,"",null,"",null,""]
["",null,null,"","","",null,null,null,null,null,null,"",null,"",null,"",null,"",null,"",null,"",null,"",null,"",null,""]
["",null,null,"","","",null,null,null,null,null,null,"",null,"",null,"",null,"",null,"",null,"",null,"",null,"",null,""]
["",null,null,"","","",null,null,null,null,null,null,"",null,"",null,"",null,"",null,"",null,"",null,"",null,"",null,""]
["",null,null,"","","",null,null,null,null,null,null,"",null,"",null,"",null,"",null,"",null,"",null,"",null,"",null,""]
["",null,null,"","","",null,null,null,null,null,null,"",null,"",null,"",null,"",null,"",null,"",null,"",null,"",null,""]
["",null,null,"","","",null,null,null,null,null,null,"",null,"",null,"",null,"",null,"",null,"",null,"",null,"",null,""]
["",null,null,"","","",null,null,null,null,null,null,"",null,"",null,"",null,"",null,"",null,"",null,"",null,"",null,""]
["",null,null,"","","",null,null,null,null,null,null,"",null,"",null,"",null,"",null,"",null,"",null,"",null,"",null,""]
["",null,null,"","","",null,null,null,null,null,null,"",null,"",null,"",null,"",null,"",null,"",null,"",null,"",null,""]
["",null,null,"","","",null,null,null,null,null,null,"",null,"",null,"",null,"",null,"",null,"",null,"",null,"",null,""]
["",null,null,"","","",null,null,null,null,null,null,"",null,"",null,"",null,"",null,"",null,"",null,"",null,"",null,""]
["",null,null,"","","",null,null,null,null,null,null,"",null,"",null,"",null,"",null,"",null,"",null,"",null,"",null,""]
["",null,null,"","","",null,null,null,null,null,null,"",null,"",null,"",null,"",null,"",null,"",null,"",null,"",null,""]
["",null,null,"","","",null,null,null,null,null,null,"",null,"",null,"",null,"",null,"",null,"",null,"",null,"",null,""]
["",null,null,"","","",null,null,null,null,null,null,"",null,"",null,"",null,"",null,"",null,"",null,"",null,"",null,""]
["",null,null,"","","",null,null,null,null,null,null,"",null,"",null,"",null,"",null,"",null,"",null,"",null,"",null,""]
["",null,null,"","","",null,null,null,null,null,null,"",null,"",null,"",null,"",null,"",null,"",null,"",null,"",null,""]
["",null,null,"","","",null,null,null,null,null,null,"",null,"",null,"",null,"",null,"",null,"",null,"",null,"",null,""]
["",null,null,"","","",null,null,null,null,null,null,"",null,"",null,"",null,"",null,"",null,"",null,"",null,"",null,""]
["",null,null,"","","",null,null,null,null,null,null,"",null,"",null,"",null,"",null,"",null,"",null,"",null,"",null,""]
["",null,null,"","","",null,null,null,null,null,null,"",null,"",null,"",null,"",null,"",null,"",null,"",null,"",null,""]
["",null,null,"","","",null,null,null,null,null,null,"",null,"",null,"",null,"",null,"",null,"",null,"",null,"",null,""]
["",null,null,"","","",null,null,null,null,null,null,"",null,"",null,"",null,"",null,"",null,"",null,"",null,"",null,""]
["",null,null,"","","",null,null,null,null,null,null,"",null,"",null,"",null,"",null,"",null,"",null,"",null,"",null,""]
["",null,null,"","","",null,null,null,null,null,null,"",null,"",null,"",null,"",null,"",null,"",null,"",null,"",null,""]
["",null,null,"","","",null,null,null,null,null,null,"",null,"",null,"",null,"",null,"",null,"",null,"",null,"",null,""]
["",null,null,"","","",null,null,null,null,null,null,{"$f":"IF(ISBLANK(K152),\"\",K152)","v":""},null,{"$f":"IF(ISBLANK(K152),\"\",K152)","v":""},null,{"$f":"IF(ISBLANK(K152),\"\",K152)","v":""},null,{"$f":"IF(ISBLANK(K152),\"\",K152)","v":""},null,{"$f":"IF(ISBLANK(K152),\"\",K152)","v":""},null,{"$f":"IF(ISBLANK(K152),\"\",K152)","v":""},null,{"$f":"IF(ISBLANK(K152),\"\",K152)","v":""},null,{"$f":"IF(ISBLANK(K152),\"\",K152)","v":""},null,{"$f":"IF(ISBLANK(K152),\"\",K152)","v":""}]
["",null,null,"","","",null,null,null,null,null,null,"",null,"",null,"",null,"",null,"",null,"",null,"",null,"",null,""]
["",null,null,"","","",null,null,null,null,null,null,"",null,"",null,"",null,"",null,"",null,"",null,"",null,"",null,""]
["",null,null,"","","",null,null,null,null,null,null,"",null,"",null,"",null,"",null,"",null,"",null,"",null,"",null,""]
["",null,null,"","","",null,null,null,null,null,null,"",null,"",null,"",null,"",null,"",null,"",null,"",null,"",null,""]
["",null,null,"","","",null,null,null,null,null,null,"",null,"",null,"",null,"",null,"",null,"",null,"",null,"",null,""]
["",null,null,"","","",null,null,null,null,null,null,"",null,"",null,"",null,"",null,"",null,"",null,"",null,"",null,""]
["",null,null,"","","",null,null,null,null,null,null,"",null,"",null,"",null,"",null,"",null,"",null,"",null,"",null,""]
["",null,null,"","","",null,null,null,null,null,null,"",null,"",null,"",null,"",null,"",null,"",null,"",null,"",null,""]
["",null,null,"","","",null,null,null,null,null,null,"",null,"",null,"",null,"",null,"",null,"",null,"",null,"",null,""]
[{"$f":"IF(OR(NOT(ISBLANK(B161)),NOT(ISBLANK(C161)),NOT(ISBLANK(G161)),NOT(ISBLANK(H161)),NOT(ISBLANK(I161)),NOT(ISBLANK(J161)),NOT(ISBLANK(K161)),NOT(ISBLANK(L161)),NOT(ISBLANK(N161)),NOT(ISBLANK(P161)),NOT(ISBLANK(R161)),NOT(ISBLANK(T161)),NOT(ISBLANK(V161)),NOT(ISBLANK(X161)),NOT(ISBLANK(Z161)),NOT(ISBLANK(AB161))),ROW(A162)-ROW(Label.Aantal),\"\")","v":""},null,null,{"$f":"IF(OR(NOT(ISBLANK(B161)),NOT(ISBLANK(C161)),NOT(ISBLANK(G161)),NOT(ISBLANK(H161)),NOT(ISBLANK(I161)),NOT(ISBLANK(J161)),NOT(ISBLANK(K161)),NOT(ISBLANK(L161)),NOT(ISBLANK(N161)),NOT(ISBLANK(P161)),NOT(ISBLANK(R161)),NOT(ISBLANK(T161)),NOT(ISBLANK(V161)),NOT(ISBLANK(X161)),NOT(ISBLANK(Z161)),NOT(ISBLANK(AB161))),100,\"\")","v":""},{"$f":"IF(OR(NOT(ISBLANK(B161)),NOT(ISBLANK(C161)),NOT(ISBLANK(G161)),NOT(ISBLANK(H161)),NOT(ISBLANK(I161)),NOT(ISBLANK(J161)),NOT(ISBLANK(K161)),NOT(ISBLANK(L161)),NOT(ISBLANK(N161)),NOT(ISBLANK(P161)),NOT(ISBLANK(R161)),NOT(ISBLANK(T161)),NOT(ISBLANK(V161)),NOT(ISBLANK(X161)),NOT(ISBLANK(Z161)),NOT(ISBLANK(AB161))),\"x\",\"\")","v":""},{"$f":"IF(OR(NOT(ISBLANK(B161)),NOT(ISBLANK(C161)),NOT(ISBLANK(G161)),NOT(ISBLANK(H161)),NOT(ISBLANK(I161)),NOT(ISBLANK(J161)),NOT(ISBLANK(K161)),NOT(ISBLANK(L161)),NOT(ISBLANK(N161)),NOT(ISBLANK(P161)),NOT(ISBLANK(R161)),NOT(ISBLANK(T161)),NOT(ISBLANK(V161)),NOT(ISBLANK(X161)),NOT(ISBLANK(Z161)),NOT(ISBLANK(AB161))),50,\"\")","v":""},null,null,null,null,null,null,"",null,"",null,"",null,"",null,"",null,"",null,"",null,"",null,""]
["",null,null,"","","",null,null,null,null,null,null,"",null,"",null,"",null,"",null,"",null,"",null,"",null,"",null,""]
["",null,null,"","","",null,null,null,null,null,null,"",null,"",null,"",null,"",null,"",null,"",null,"",null,"",null,""]
["",null,null,"","","",null,null,null,null,null,null,"",null,"",null,"",null,"",null,"",null,"",null,"",null,"",null,""]
["",null,null,"","","",null,null,null,null,null,null,"",null,"",null,"",null,"",null,"",null,"",null,"",null,"",null,""]
["",null,null,"","","",null,null,null,null,null,null,"",null,"",null,"",null,"",null,"",null,"",null,"",null,"",null,""]
["",null,null,"","","",null,null,null,null,null,null,"",null,"",null,"",null,"",null,"",null,"",null,"",null,"",null,""]
["",null,null,"","","",null,null,null,null,null,null,"",null,"",null,"",null,"",null,"",null,"",null,"",null,"",null,""]
["",null,null,"","","",null,null,null,null,null,null,"",null,"",null,"",null,"",null,"",null,"",null,"",null,"",null,""]
["",null,null,"","","",null,null,null,null,null,null,"",null,"",null,"",null,"",null,"",null,"",null,"",null,"",null,""]
["",null,null,"","","",null,null,null,null,null,null,"",null,"",null,"",null,"",null,"",null,"",null,"",null,"",null,""]
["",null,null,"","","",null,null,null,null,null,null,"",null,"",null,"",null,"",null,"",null,"",null,"",null,"",null,""]
["",null,null,"","","",null,null,null,null,null,null,"",null,"",null,"",null,"",null,"",null,"",null,"",null,"",null,""]
["",null,null,"","","",null,null,null,null,null,null,"",null,"",null,"",null,"",null,"",null,"",null,"",null,"",null,""]
["",null,null,"","","",null,null,null,null,null,null,"",null,"",null,"",null,"",null,"",null,"",null,"",null,"",null,""]
["",null,null,"","","",null,null,null,null,null,null,"",null,"",null,"",null,"",null,"",null,"",null,"",null,"",null,""]
["",null,null,"","","",null,null,null,null,null,null,"",null,"",null,"",null,"",null,"",null,"",null,"",null,"",null,""]
["",null,null,"","","",null,null,null,null,null,null,"",null,"",null,"",null,"",null,"",null,"",null,"",null,"",null,""]
["",null,null,"","","",null,null,null,null,null,null,"",null,"",null,"",null,"",null,"",null,"",null,"",null,"",null,""]
["",null,null,"","","",null,null,null,null,null,null,"",null,"",null,"",null,"",null,"",null,"",null,"",null,"",null,""]
["",null,null,"","","",null,null,null,null,null,null,"",null,"",null,"",null,"",null,"",null,"",null,"",null,"",null,""]
["",null,null,"","","",null,null,null,null,null,null,"",null,"",null,"",null,"",null,"",null,"",null,"",null,"",null,""]
["",null,null,"","","",null,null,null,null,null,null,"",null,"",null,"",null,"",null,"",null,"",null,"",null,"",null,""]
["",null,null,"","","",null,null,null,null,null,null,"",null,"",null,"",null,"",null,"",null,"",null,"",null,"",null,""]
["",null,null,"","","",null,null,null,null,null,null,"",null,"",null,"",null,"",null,"",null,"",null,"",null,"",null,""]
["",null,null,"","","",null,null,null,null,null,null,"",null,"",null,"",null,"",null,"",null,"",null,"",null,"",null,""]
["",null,null,"","","",null,null,null,null,null,null,"",null,"",null,"",null,"",null,"",null,"",null,"",null,"",null,""]
["",null,null,"","","",null,null,null,null,null,null,"",null,"",null,"",null,"",null,"",null,"",null,"",null,"",null,""]
["",null,null,"","","",null,null,null,null,null,null,"",null,"",null,"",null,"",null,"",null,"",null,"",null,"",null,""]
["",null,null,"","","",null,null,null,null,null,null,"",null,"",null,"",null,"",null,"",null,"",null,"",null,"",null,""]
["",null,null,"","","",null,null,null,null,null,null,"",null,"",null,"",null,"",null,"",null,"",null,"",null,"",null,""]
["",null,null,"","","",null,null,null,null,null,null,"",null,"",null,"",null,"",null,"",null,"",null,"",null,"",null,""]
["",null,null,"","","",null,null,null,null,null,null,"",null,"",null,"",null,"",null,"",null,"",null,"",null,"",null,""]
["",null,null,"","","",null,null,null,null,null,null,"",null,"",null,"",null,"",null,"",null,"",null,"",null,"",null,""]
["",null,null,"","","",null,null,null,null,null,null,"",null,"",null,"",null,"",null,"",null,"",null,"",null,"",null,""]
["",null,null,"","","",null,null,null,null,null,null,"",null,"",null,"",null,"",null,"",null,"",null,"",null,"",null,""]
["",null,null,"","","",null,null,null,null,null,null,"",null,"",null,"",null,"",null,"",null,"",null,"",null,"",null,""]
["",null,null,"","","",null,null,null,null,null,null,"",null,"",null,"",null,"",null,"",null,"",null,"",null,"",null,""]
["",null,null,"","","",null,null,null,null,null,null,"",null,"",null,"",null,"",null,"",null,"",null,"",null,"",null,""]
["",null,null,"","","",null,null,null,null,null,null,"",null,"",null,"",null,"",null,"",null,"",null,"",null,"",null,""]
["",null,null,"","","",null,null,null,null,null,null,"",null,"",null,"",null,"",null,"",null,"",null,"",null,"",null,""]
["",null,null,"","","",null,null,null,null,null,null,"",null,"",null,"",null,"",null,"",null,"",null,"",null,"",null,""]
["",null,null,"","","",null,null,null,null,null,null,"",null,"",null,"",null,"",null,"",null,"",null,"",null,"",null,""]
["",null,null,"","","",null,null,null,null,null,null,"",null,"",null,"",null,"",null,"",null,"",null,"",null,"",null,""]
["",null,null,"","","",null,null,null,null,null,null,"",null,"",null,"",null,"",null,"",null,"",null,"",null,"",null,""]
["",null,null,"","","",null,null,null,null,null,null,"",null,"",null,"",null,"",null,"",null,"",null,"",null,"",null,""]
["",null,null,"","","",null,null,null,null,null,null,"",null,"",null,"",null,"",null,"",null,"",null,"",null,"",null,""]
["",null,null,"","","",null,null,null,null,null,null,"",null,"",null,"",null,"",null,"",null,"",null,"",null,"",null,""]
["",null,null,"","","",null,null,null,null,null,null,"",null,"",null,"",null,"",null,"",null,"",null,"",null,"",null,""]
["",null,null,"","","",null,null,null,null,null,null,"",null,"",null,"",null,"",null,"",null,"",null,"",null,"",null,""]
["",null,null,"","","",null,null,null,null,null,null,"",null,"",null,"",null,"",null,"",null,"",null,"",null,"",null,""]
["",null,null,"","","",null,null,null,null,null,null,"",null,"",null,"",null,"",null,"",null,"",null,"",null,"",null,""]
["",null,null,"","","",null,null,null,null,null,null,"",null,"",null,"",null,"",null,"",null,"",null,"",null,"",null,""]
["",null,null,"","","",null,null,null,null,null,null,"",null,"",null,"",null,"",null,"",null,"",null,"",null,"",null,""]
["",null,null,"","","",null,null,null,null,null,null,{"$f":"IF(ISBLANK(K216),\"\",K216)","v":""},null,{"$f":"IF(ISBLANK(K216),\"\",K216)","v":""},null,{"$f":"IF(ISBLANK(K216),\"\",K216)","v":""},null,{"$f":"IF(ISBLANK(K216),\"\",K216)","v":""},null,{"$f":"IF(ISBLANK(K216),\"\",K216)","v":""},null,{"$f":"IF(ISBLANK(K216),\"\",K216)","v":""},null,{"$f":"IF(ISBLANK(K216),\"\",K216)","v":""},null,{"$f":"IF(ISBLANK(K216),\"\",K216)","v":""},null,{"$f":"IF(ISBLANK(K216),\"\",K216)","v":""}]
["",null,null,"","","",null,null,null,null,null,null,"",null,"",null,"",null,"",null,"",null,"",null,"",null,"",null,""]
["",null,null,"","","",null,null,null,null,null,null,"",null,"",null,"",null,"",null,"",null,"",null,"",null,"",null,""]
["",null,null,"","","",null,null,null,null,null,null,"",null,"",null,"",null,"",null,"",null,"",null,"",null,"",null,""]
["",null,null,"","","",null,null,null,null,null,null,"",null,"",null,"",null,"",null,"",null,"",null,"",null,"",null,""]
["",null,null,"","","",null,null,null,null,null,null,"",null,"",null,"",null,"",null,"",null,"",null,"",null,"",null,""]
["",null,null,"","","",null,null,null,null,null,null,"",null,"",null,"",null,"",null,"",null,"",null,"",null,"",null,""]
["",null,null,"","","",null,null,null,null,null,null,"",null,"",null,"",null,"",null,"",null,"",null,"",null,"",null,""]
["",null,null,"","","",null,null,null,null,null,null,"",null,"",null,"",null,"",null,"",null,"",null,"",null,"",null,""]
["",null,null,"","","",null,null,null,null,null,null,"",null,"",null,"",null,"",null,"",null,"",null,"",null,"",null,""]
[{"$f":"IF(OR(NOT(ISBLANK(B225)),NOT(ISBLANK(C225)),NOT(ISBLANK(G225)),NOT(ISBLANK(H225)),NOT(ISBLANK(I225)),NOT(ISBLANK(J225)),NOT(ISBLANK(K225)),NOT(ISBLANK(L225)),NOT(ISBLANK(N225)),NOT(ISBLANK(P225)),NOT(ISBLANK(R225)),NOT(ISBLANK(T225)),NOT(ISBLANK(V225)),NOT(ISBLANK(X225)),NOT(ISBLANK(Z225)),NOT(ISBLANK(AB225))),ROW(A226)-ROW(Label.Aantal),\"\")","v":""},null,null,{"$f":"IF(OR(NOT(ISBLANK(B225)),NOT(ISBLANK(C225)),NOT(ISBLANK(G225)),NOT(ISBLANK(H225)),NOT(ISBLANK(I225)),NOT(ISBLANK(J225)),NOT(ISBLANK(K225)),NOT(ISBLANK(L225)),NOT(ISBLANK(N225)),NOT(ISBLANK(P225)),NOT(ISBLANK(R225)),NOT(ISBLANK(T225)),NOT(ISBLANK(V225)),NOT(ISBLANK(X225)),NOT(ISBLANK(Z225)),NOT(ISBLANK(AB225))),100,\"\")","v":""},{"$f":"IF(OR(NOT(ISBLANK(B225)),NOT(ISBLANK(C225)),NOT(ISBLANK(G225)),NOT(ISBLANK(H225)),NOT(ISBLANK(I225)),NOT(ISBLANK(J225)),NOT(ISBLANK(K225)),NOT(ISBLANK(L225)),NOT(ISBLANK(N225)),NOT(ISBLANK(P225)),NOT(ISBLANK(R225)),NOT(ISBLANK(T225)),NOT(ISBLANK(V225)),NOT(ISBLANK(X225)),NOT(ISBLANK(Z225)),NOT(ISBLANK(AB225))),\"x\",\"\")","v":""},{"$f":"IF(OR(NOT(ISBLANK(B225)),NOT(ISBLANK(C225)),NOT(ISBLANK(G225)),NOT(ISBLANK(H225)),NOT(ISBLANK(I225)),NOT(ISBLANK(J225)),NOT(ISBLANK(K225)),NOT(ISBLANK(L225)),NOT(ISBLANK(N225)),NOT(ISBLANK(P225)),NOT(ISBLANK(R225)),NOT(ISBLANK(T225)),NOT(ISBLANK(V225)),NOT(ISBLANK(X225)),NOT(ISBLANK(Z225)),NOT(ISBLANK(AB225))),50,\"\")","v":""},null,null,null,null,null,null,"",null,"",null,"",null,"",null,"",null,"",null,"",null,"",null,""]
["",null,null,"","","",null,null,null,null,null,null,"",null,"",null,"",null,"",null,"",null,"",null,"",null,"",null,""]
["",null,null,"","","",null,null,null,null,null,null,"",null,"",null,"",null,"",null,"",null,"",null,"",null,"",null,""]
["",null,null,"","","",null,null,null,null,null,null,"",null,"",null,"",null,"",null,"",null,"",null,"",null,"",null,""]
["",null,null,"","","",null,null,null,null,null,null,"",null,"",null,"",null,"",null,"",null,"",null,"",null,"",null,""]
["",null,null,"","","",null,null,null,null,null,null,"",null,"",null,"",null,"",null,"",null,"",null,"",null,"",null,""]
["",null,null,"","","",null,null,null,null,null,null,"",null,"",null,"",null,"",null,"",null,"",null,"",null,"",null,""]
["",null,null,"","","",null,null,null,null,null,null,"",null,"",null,"",null,"",null,"",null,"",null,"",null,"",null,""]
["",null,null,"","","",null,null,null,null,null,null,"",null,"",null,"",null,"",null,"",null,"",null,"",null,"",null,""]
["",null,null,"","","",null,null,null,null,null,null,"",null,"",null,"",null,"",null,"",null,"",null,"",null,"",null,""]
["",null,null,"","","",null,null,null,null,null,null,"",null,"",null,"",null,"",null,"",null,"",null,"",null,"",null,""]
["",null,null,"","","",null,null,null,null,null,null,"",null,"",null,"",null,"",null,"",null,"",null,"",null,"",null,""]
["",null,null,"","","",null,null,null,null,null,null,"",null,"",null,"",null,"",null,"",null,"",null,"",null,"",null,""]
["",null,null,"","","",null,null,null,null,null,null,"",null,"",null,"",null,"",null,"",null,"",null,"",null,"",null,""]
["",null,null,"","","",null,null,null,null,null,null,"",null,"",null,"",null,"",null,"",null,"",null,"",null,"",null,""]
["",null,null,"","","",null,null,null,null,null,null,"",null,"",null,"",null,"",null,"",null,"",null,"",null,"",null,""]
["",null,null,"","","",null,null,null,null,null,null,"",null,"",null,"",null,"",null,"",null,"",null,"",null,"",null,""]
["",null,null,"","","",null,null,null,null,null,null,"",null,"",null,"",null,"",null,"",null,"",null,"",null,"",null,""]
["",null,null,"","","",null,null,null,null,null,null,"",null,"",null,"",null,"",null,"",null,"",null,"",null,"",null,""]
["",null,null,"","","",null,null,null,null,null,null,"",null,"",null,"",null,"",null,"",null,"",null,"",null,"",null,""]
["",null,null,"","","",null,null,null,null,null,null,"",null,"",null,"",null,"",null,"",null,"",null,"",null,"",null,""]
["",null,null,"","","",null,null,null,null,null,null,"",null,"",null,"",null,"",null,"",null,"",null,"",null,"",null,""]
["",null,null,"","","",null,null,null,null,null,null,"",null,"",null,"",null,"",null,"",null,"",null,"",null,"",null,""]
["",null,null,"","","",null,null,null,null,null,null,"",null,"",null,"",null,"",null,"",null,"",null,"",null,"",null,""]
["",null,null,"","","",null,null,null,null,null,null,"",null,"",null,"",null,"",null,"",null,"",null,"",null,"",null,""]
["",null,null,"","","",null,null,null,null,null,null,"",null,"",null,"",null,"",null,"",null,"",null,"",null,"",null,""]
["",null,null,"","","",null,null,null,null,null,null,"",null,"",null,"",null,"",null,"",null,"",null,"",null,"",null,""]
["",null,null,"","","",null,null,null,null,null,null,"",null,"",null,"",null,"",null,"",null,"",null,"",null,"",null,""]
["",null,null,"","","",null,null,null,null,null,null,"",null,"",null,"",null,"",null,"",null,"",null,"",null,"",null,""]
["",null,null,"","","",null,null,null,null,null,null,"",null,"",null,"",null,"",null,"",null,"",null,"",null,"",null,""]
["",null,null,"","","",null,null,null,null,null,null,"",null,"",null,"",null,"",null,"",null,"",null,"",null,"",null,""]
["",null,null,"","","",null,null,null,null,null,null,"",null,"",null,"",null,"",null,"",null,"",null,"",null,"",null,""]
["",null,null,"","","",null,null,null,null,null,null,"",null,"",null,"",null,"",null,"",null,"",null,"",null,"",null,""]
["",null,null,"","","",null,null,null,null,null,null,"",null,"",null,"",null,"",null,"",null,"",null,"",null,"",null,""]
["",null,null,"","","",null,null,null,null,null,null,"",null,"",null,"",null,"",null,"",null,"",null,"",null,"",null,""]
["",null,null,"","","",null,null,null,null,null,null,"",null,"",null,"",null,"",null,"",null,"",null,"",null,"",null,""]
["",null,null,"","","",null,null,null,null,null,null,"",null,"",null,"",null,"",null,"",null,"",null,"",null,"",null,""]
["",null,null,"","","",null,null,null,null,null,null,"",null,"",null,"",null,"",null,"",null,"",null,"",null,"",null,""]
["",null,null,"","","",null,null,null,null,null,null,"",null,"",null,"",null,"",null,"",null,"",null,"",null,"",null,""]
["",null,null,"","","",null,null,null,null,null,null,"",null,"",null,"",null,"",null,"",null,"",null,"",null,"",null,""]
["",null,null,"","","",null,null,null,null,null,null,"",null,"",null,"",null,"",null,"",null,"",null,"",null,"",null,""]
["",null,null,"","","",null,null,null,null,null,null,"",null,"",null,"",null,"",null,"",null,"",null,"",null,"",null,""]
["",null,null,"","","",null,null,null,null,null,null,"",null,"",null,"",null,"",null,"",null,"",null,"",null,"",null,""]
["",null,null,"","","",null,null,null,null,null,null,"",null,"",null,"",null,"",null,"",null,"",null,"",null,"",null,""]
["",null,null,"","","",null,null,null,null,null,null,"",null,"",null,"",null,"",null,"",null,"",null,"",null,"",null,""]
["",null,null,"","","",null,null,null,null,null,null,"",null,"",null,"",null,"",null,"",null,"",null,"",null,"",null,""]
["",null,null,"","","",null,null,null,null,null,null,"",null,"",null,"",null,"",null,"",null,"",null,"",null,"",null,""]
["",null,null,"","","",null,null,null,null,null,null,"",null,"",null,"",null,"",null,"",null,"",null,"",null,"",null,""]
["",null,null,"","","",null,null,null,null,null,null,"",null,"",null,"",null,"",null,"",null,"",null,"",null,"",null,""]
["",null,null,"","","",null,null,null,null,null,null,"",null,"",null,"",null,"",null,"",null,"",null,"",null,"",null,""]
["",null,null,"","","",null,null,null,null,null,null,"",null,"",null,"",null,"",null,"",null,"",null,"",null,"",null,""]
["",null,null,"","","",null,null,null,null,null,null,"",null,"",null,"",null,"",null,"",null,"",null,"",null,"",null,""]
["",null,null,"","","",null,null,null,null,null,null,"",null,"",null,"",null,"",null,"",null,"",null,"",null,"",null,""]
["",null,null,"","","",null,null,null,null,null,null,"",null,"",null,"",null,"",null,"",null,"",null,"",null,"",null,""]
["",null,null,"","","",null,null,null,null,null,null,{"$f":"IF(ISBLANK(K280),\"\",K280)","v":""},null,{"$f":"IF(ISBLANK(K280),\"\",K280)","v":""},null,{"$f":"IF(ISBLANK(K280),\"\",K280)","v":""},null,{"$f":"IF(ISBLANK(K280),\"\",K280)","v":""},null,{"$f":"IF(ISBLANK(K280),\"\",K280)","v":""},null,{"$f":"IF(ISBLANK(K280),\"\",K280)","v":""},null,{"$f":"IF(ISBLANK(K280),\"\",K280)","v":""},null,{"$f":"IF(ISBLANK(K280),\"\",K280)","v":""},null,{"$f":"IF(ISBLANK(K280),\"\",K280)","v":""}]
["",null,null,"","","",null,null,null,null,null,null,"",null,"",null,"",null,"",null,"",null,"",null,"",null,"",null,""]
["",null,null,"","","",null,null,null,null,null,null,"",null,"",null,"",null,"",null,"",null,"",null,"",null,"",null,""]
["",null,null,"","","",null,null,null,null,null,null,"",null,"",null,"",null,"",null,"",null,"",null,"",null,"",null,""]
["",null,null,"","","",null,null,null,null,null,null,"",null,"",null,"",null,"",null,"",null,"",null,"",null,"",null,""]
["",null,null,"","","",null,null,null,null,null,null,"",null,"",null,"",null,"",null,"",null,"",null,"",null,"",null,""]
["",null,null,"","","",null,null,null,null,null,null,"",null,"",null,"",null,"",null,"",null,"",null,"",null,"",null,""]
["",null,null,"","","",null,null,null,null,null,null,"",null,"",null,"",null,"",null,"",null,"",null,"",null,"",null,""]
["",null,null,"","","",null,null,null,null,null,null,"",null,"",null,"",null,"",null,"",null,"",null,"",null,"",null,""]
["",null,null,"","","",null,null,null,null,null,null,"",null,"",null,"",null,"",null,"",null,"",null,"",null,"",null,""]
[{"$f":"IF(OR(NOT(ISBLANK(B289)),NOT(ISBLANK(C289)),NOT(ISBLANK(G289)),NOT(ISBLANK(H289)),NOT(ISBLANK(I289)),NOT(ISBLANK(J289)),NOT(ISBLANK(K289)),NOT(ISBLANK(L289)),NOT(ISBLANK(N289)),NOT(ISBLANK(P289)),NOT(ISBLANK(R289)),NOT(ISBLANK(T289)),NOT(ISBLANK(V289)),NOT(ISBLANK(X289)),NOT(ISBLANK(Z289)),NOT(ISBLANK(AB289))),ROW(A290)-ROW(Label.Aantal),\"\")","v":""},null,null,{"$f":"IF(OR(NOT(ISBLANK(B289)),NOT(ISBLANK(C289)),NOT(ISBLANK(G289)),NOT(ISBLANK(H289)),NOT(ISBLANK(I289)),NOT(ISBLANK(J289)),NOT(ISBLANK(K289)),NOT(ISBLANK(L289)),NOT(ISBLANK(N289)),NOT(ISBLANK(P289)),NOT(ISBLANK(R289)),NOT(ISBLANK(T289)),NOT(ISBLANK(V289)),NOT(ISBLANK(X289)),NOT(ISBLANK(Z289)),NOT(ISBLANK(AB289))),100,\"\")","v":""},{"$f":"IF(OR(NOT(ISBLANK(B289)),NOT(ISBLANK(C289)),NOT(ISBLANK(G289)),NOT(ISBLANK(H289)),NOT(ISBLANK(I289)),NOT(ISBLANK(J289)),NOT(ISBLANK(K289)),NOT(ISBLANK(L289)),NOT(ISBLANK(N289)),NOT(ISBLANK(P289)),NOT(ISBLANK(R289)),NOT(ISBLANK(T289)),NOT(ISBLANK(V289)),NOT(ISBLANK(X289)),NOT(ISBLANK(Z289)),NOT(ISBLANK(AB289))),\"x\",\"\")","v":""},{"$f":"IF(OR(NOT(ISBLANK(B289)),NOT(ISBLANK(C289)),NOT(ISBLANK(G289)),NOT(ISBLANK(H289)),NOT(ISBLANK(I289)),NOT(ISBLANK(J289)),NOT(ISBLANK(K289)),NOT(ISBLANK(L289)),NOT(ISBLANK(N289)),NOT(ISBLANK(P289)),NOT(ISBLANK(R289)),NOT(ISBLANK(T289)),NOT(ISBLANK(V289)),NOT(ISBLANK(X289)),NOT(ISBLANK(Z289)),NOT(ISBLANK(AB289))),50,\"\")","v":""},null,null,null,null,null,null,"",null,"",null,"",null,"",null,"",null,"",null,"",null,"",null,""]
["",null,null,"","","",null,null,null,null,null,null,"",null,"",null,"",null,"",null,"",null,"",null,"",null,"",null,""]
["",null,null,"","","",null,null,null,null,null,null,"",null,"",null,"",null,"",null,"",null,"",null,"",null,"",null,""]
["",null,null,"","","",null,null,null,null,null,null,"",null,"",null,"",null,"",null,"",null,"",null,"",null,"",null,""]
["",null,null,"","","",null,null,null,null,null,null,"",null,"",null,"",null,"",null,"",null,"",null,"",null,"",null,""]
["",null,null,"","","",null,null,null,null,null,null,"",null,"",null,"",null,"",null,"",null,"",null,"",null,"",null,""]
["",null,null,"","","",null,null,null,null,null,null,"",null,"",null,"",null,"",null,"",null,"",null,"",null,"",null,""]
["",null,null,"","","",null,null,null,null,null,null,"",null,"",null,"",null,"",null,"",null,"",null,"",null,"",null,""]
["",null,null,"","","",null,null,null,null,null,null,"",null,"",null,"",null,"",null,"",null,"",null,"",null,"",null,""]
["",null,null,"","","",null,null,null,null,null,null,"",null,"",null,"",null,"",null,"",null,"",null,"",null,"",null,""]
["",null,null,"","","",null,null,null,null,null,null,"",null,"",null,"",null,"",null,"",null,"",null,"",null,"",null,""]
["",null,null,"","","",null,null,null,null,null,null,"",null,"",null,"",null,"",null,"",null,"",null,"",null,"",null,""]
["",null,null,"","","",null,null,null,null,null,null,"",null,"",null,"",null,"",null,"",null,"",null,"",null,"",null,""]
["",null,null,"","","",null,null,null,null,null,null,"",null,"",null,"",null,"",null,"",null,"",null,"",null,"",null,""]
["",null,null,"","","",null,null,null,null,null,null,"",null,"",null,"",null,"",null,"",null,"",null,"",null,"",null,""]
["",null,null,"","","",null,null,null,null,null,null,"",null,"",null,"",null,"",null,"",null,"",null,"",null,"",null,""]
["",null,null,"","","",null,null,null,null,null,null,"",null,"",null,"",null,"",null,"",null,"",null,"",null,"",null,""]
["",null,null,"","","",null,null,null,null,null,null,"",null,"",null,"",null,"",null,"",null,"",null,"",null,"",null,""]
["",null,null,"","","",null,null,null,null,null,null,"",null,"",null,"",null,"",null,"",null,"",null,"",null,"",null,""]
["",null,null,"","","",null,null,null,null,null,null,"",null,"",null,"",null,"",null,"",null,"",null,"",null,"",null,""]
["",null,null,"","","",null,null,null,null,null,null,"",null,"",null,"",null,"",null,"",null,"",null,"",null,"",null,""]
["",null,null,"","","",null,null,null,null,null,null,"",null,"",null,"",null,"",null,"",null,"",null,"",null,"",null,""]
["",null,null,"","","",null,null,null,null,null,null,"",null,"",null,"",null,"",null,"",null,"",null,"",null,"",null,""]
["",null,null,"","","",null,null,null,null,null,null,"",null,"",null,"",null,"",null,"",null,"",null,"",null,"",null,""]
["",null,null,"","","",null,null,null,null,null,null,"",null,"",null,"",null,"",null,"",null,"",null,"",null,"",null,""]
["",null,null,"","","",null,null,null,null,null,null,"",null,"",null,"",null,"",null,"",null,"",null,"",null,"",null,""]
["",null,null,"","","",null,null,null,null,null,null,"",null,"",null,"",null,"",null,"",null,"",null,"",null,"",null,""]
["",null,null,"","","",null,null,null,null,null,null,"",null,"",null,"",null,"",null,"",null,"",null,"",null,"",null,""]
["",null,null,"","","",null,null,null,null,null,null,"",null,"",null,"",null,"",null,"",null,"",null,"",null,"",null,""]
["",null,null,"","","",null,null,null,null,null,null,"",null,"",null,"",null,"",null,"",null,"",null,"",null,"",null,""]
["",null,null,"","","",null,null,null,null,null,null,"",null,"",null,"",null,"",null,"",null,"",null,"",null,"",null,""]
["",null,null,"","","",null,null,null,null,null,null,"",null,"",null,"",null,"",null,"",null,"",null,"",null,"",null,""]
["",null,null,"","","",null,null,null,null,null,null,"",null,"",null,"",null,"",null,"",null,"",null,"",null,"",null,""]
["",null,null,"","","",null,null,null,null,null,null,"",null,"",null,"",null,"",null,"",null,"",null,"",null,"",null,""]
["",null,null,"","","",null,null,null,null,null,null,"",null,"",null,"",null,"",null,"",null,"",null,"",null,"",null,""]
["",null,null,"","","",null,null,null,null,null,null,"",null,"",null,"",null,"",null,"",null,"",null,"",null,"",null,""]
["",null,null,"","","",null,null,null,null,null,null,"",null,"",null,"",null,"",null,"",null,"",null,"",null,"",null,""]
["",null,null,"","","",null,null,null,null,null,null,"",null,"",null,"",null,"",null,"",null,"",null,"",null,"",null,""]
["",null,null,"","","",null,null,null,null,null,null,"",null,"",null,"",null,"",null,"",null,"",null,"",null,"",null,""]
["",null,null,"","","",null,null,null,null,null,null,"",null,"",null,"",null,"",null,"",null,"",null,"",null,"",null,""]
["",null,null,"","","",null,null,null,null,null,null,"",null,"",null,"",null,"",null,"",null,"",null,"",null,"",null,""]
["",null,null,"","","",null,null,null,null,null,null,"",null,"",null,"",null,"",null,"",null,"",null,"",null,"",null,""]
["",null,null,"","","",null,null,null,null,null,null,"",null,"",null,"",null,"",null,"",null,"",null,"",null,"",null,""]
["",null,null,"","","",null,null,null,null,null,null,"",null,"",null,"",null,"",null,"",null,"",null,"",null,"",null,""]
["",null,null,"","","",null,null,null,null,null,null,"",null,"",null,"",null,"",null,"",null,"",null,"",null,"",null,""]
["",null,null,"","","",null,null,null,null,null,null,"",null,"",null,"",null,"",null,"",null,"",null,"",null,"",null,""]
["",null,null,"","","",null,null,null,null,null,null,"",null,"",null,"",null,"",null,"",null,"",null,"",null,"",null,""]
["",null,null,"","","",null,null,null,null,null,null,"",null,"",null,"",null,"",null,"",null,"",null,"",null,"",null,""]
["",null,null,"","","",null,null,null,null,null,null,"",null,"",null,"",null,"",null,"",null,"",null,"",null,"",null,""]
["",null,null,"","","",null,null,null,null,null,null,"",null,"",null,"",null,"",null,"",null,"",null,"",null,"",null,""]
["",null,null,"","","",null,null,null,null,null,null,"",null,"",null,"",null,"",null,"",null,"",null,"",null,"",null,""]
["",null,null,"","","",null,null,null,null,null,null,"",null,"",null,"",null,"",null,"",null,"",null,"",null,"",null,""]
["",null,null,"","","",null,null,null,null,null,null,"",null,"",null,"",null,"",null,"",null,"",null,"",null,"",null,""]
["",null,null,"","","",null,null,null,null,null,null,"",null,"",null,"",null,"",null,"",null,"",null,"",null,"",null,""]
["",null,null,"","","",null,null,null,null,null,null,{"$f":"IF(ISBLANK(K344),\"\",K344)","v":""},null,{"$f":"IF(ISBLANK(K344),\"\",K344)","v":""},null,{"$f":"IF(ISBLANK(K344),\"\",K344)","v":""},null,{"$f":"IF(ISBLANK(K344),\"\",K344)","v":""},null,{"$f":"IF(ISBLANK(K344),\"\",K344)","v":""},null,{"$f":"IF(ISBLANK(K344),\"\",K344)","v":""},null,{"$f":"IF(ISBLANK(K344),\"\",K344)","v":""},null,{"$f":"IF(ISBLANK(K344),\"\",K344)","v":""},null,{"$f":"IF(ISBLANK(K344),\"\",K344)","v":""}]
["",null,null,"","","",null,null,null,null,null,null,"",null,"",null,"",null,"",null,"",null,"",null,"",null,"",null,""]
["",null,null,"","","",null,null,null,null,null,null,"",null,"",null,"",null,"",null,"",null,"",null,"",null,"",null,""]
["",null,null,"","","",null,null,null,null,null,null,"",null,"",null,"",null,"",null,"",null,"",null,"",null,"",null,""]
["",null,null,"","","",null,null,null,null,null,null,"",null,"",null,"",null,"",null,"",null,"",null,"",null,"",null,""]
["",null,null,"","","",null,null,null,null,null,null,"",null,"",null,"",null,"",null,"",null,"",null,"",null,"",null,""]
["",null,null,"","","",null,null,null,null,null,null,"",null,"",null,"",null,"",null,"",null,"",null,"",null,"",null,""]
["",null,null,"","","",null,null,null,null,null,null,"",null,"",null,"",null,"",null,"",null,"",null,"",null,"",null,""]
["",null,null,"","","",null,null,null,null,null,null,"",null,"",null,"",null,"",null,"",null,"",null,"",null,"",null,""]
["",null,null,"","","",null,null,null,null,null,null,"",null,"",null,"",null,"",null,"",null,"",null,"",null,"",null,""]
[{"$f":"IF(OR(NOT(ISBLANK(B353)),NOT(ISBLANK(C353)),NOT(ISBLANK(G353)),NOT(ISBLANK(H353)),NOT(ISBLANK(I353)),NOT(ISBLANK(J353)),NOT(ISBLANK(K353)),NOT(ISBLANK(L353)),NOT(ISBLANK(N353)),NOT(ISBLANK(P353)),NOT(ISBLANK(R353)),NOT(ISBLANK(T353)),NOT(ISBLANK(V353)),NOT(ISBLANK(X353)),NOT(ISBLANK(Z353)),NOT(ISBLANK(AB353))),ROW(A354)-ROW(Label.Aantal),\"\")","v":""},null,null,{"$f":"IF(OR(NOT(ISBLANK(B353)),NOT(ISBLANK(C353)),NOT(ISBLANK(G353)),NOT(ISBLANK(H353)),NOT(ISBLANK(I353)),NOT(ISBLANK(J353)),NOT(ISBLANK(K353)),NOT(ISBLANK(L353)),NOT(ISBLANK(N353)),NOT(ISBLANK(P353)),NOT(ISBLANK(R353)),NOT(ISBLANK(T353)),NOT(ISBLANK(V353)),NOT(ISBLANK(X353)),NOT(ISBLANK(Z353)),NOT(ISBLANK(AB353))),100,\"\")","v":""},{"$f":"IF(OR(NOT(ISBLANK(B353)),NOT(ISBLANK(C353)),NOT(ISBLANK(G353)),NOT(ISBLANK(H353)),NOT(ISBLANK(I353)),NOT(ISBLANK(J353)),NOT(ISBLANK(K353)),NOT(ISBLANK(L353)),NOT(ISBLANK(N353)),NOT(ISBLANK(P353)),NOT(ISBLANK(R353)),NOT(ISBLANK(T353)),NOT(ISBLANK(V353)),NOT(ISBLANK(X353)),NOT(ISBLANK(Z353)),NOT(ISBLANK(AB353))),\"x\",\"\")","v":""},{"$f":"IF(OR(NOT(ISBLANK(B353)),NOT(ISBLANK(C353)),NOT(ISBLANK(G353)),NOT(ISBLANK(H353)),NOT(ISBLANK(I353)),NOT(ISBLANK(J353)),NOT(ISBLANK(K353)),NOT(ISBLANK(L353)),NOT(ISBLANK(N353)),NOT(ISBLANK(P353)),NOT(ISBLANK(R353)),NOT(ISBLANK(T353)),NOT(ISBLANK(V353)),NOT(ISBLANK(X353)),NOT(ISBLANK(Z353)),NOT(ISBLANK(AB353))),50,\"\")","v":""},null,null,null,null,null,null,"",null,"",null,"",null,"",null,"",null,"",null,"",null,"",null,""]
["",null,null,"","","",null,null,null,null,null,null,"",null,"",null,"",null,"",null,"",null,"",null,"",null,"",null,""]
["",null,null,"","","",null,null,null,null,null,null,"",null,"",null,"",null,"",null,"",null,"",null,"",null,"",null,""]
["",null,null,"","","",null,null,null,null,null,null,"",null,"",null,"",null,"",null,"",null,"",null,"",null,"",null,""]
["",null,null,"","","",null,null,null,null,null,null,"",null,"",null,"",null,"",null,"",null,"",null,"",null,"",null,""]
["",null,null,"","","",null,null,null,null,null,null,"",null,"",null,"",null,"",null,"",null,"",null,"",null,"",null,""]
["",null,null,"","","",null,null,null,null,null,null,"",null,"",null,"",null,"",null,"",null,"",null,"",null,"",null,""]
["",null,null,"","","",null,null,null,null,null,null,"",null,"",null,"",null,"",null,"",null,"",null,"",null,"",null,""]
["",null,null,"","","",null,null,null,null,null,null,"",null,"",null,"",null,"",null,"",null,"",null,"",null,"",null,""]
["",null,null,"","","",null,null,null,null,null,null,"",null,"",null,"",null,"",null,"",null,"",null,"",null,"",null,""]
["",null,null,"","","",null,null,null,null,null,null,"",null,"",null,"",null,"",null,"",null,"",null,"",null,"",null,""]
["",null,null,"","","",null,null,null,null,null,null,"",null,"",null,"",null,"",null,"",null,"",null,"",null,"",null,""]
["",null,null,"","","",null,null,null,null,null,null,"",null,"",null,"",null,"",null,"",null,"",null,"",null,"",null,""]
["",null,null,"","","",null,null,null,null,null,null,"",null,"",null,"",null,"",null,"",null,"",null,"",null,"",null,""]
["",null,null,"","","",null,null,null,null,null,null,"",null,"",null,"",null,"",null,"",null,"",null,"",null,"",null,""]
["",null,null,"","","",null,null,null,null,null,null,"",null,"",null,"",null,"",null,"",null,"",null,"",null,"",null,""]
["",null,null,"","","",null,null,null,null,null,null,"",null,"",null,"",null,"",null,"",null,"",null,"",null,"",null,""]
["",null,null,"","","",null,null,null,null,null,null,"",null,"",null,"",null,"",null,"",null,"",null,"",null,"",null,""]
["",null,null,"","","",null,null,null,null,null,null,"",null,"",null,"",null,"",null,"",null,"",null,"",null,"",null,""]
["",null,null,"","","",null,null,null,null,null,null,"",null,"",null,"",null,"",null,"",null,"",null,"",null,"",null,""]
["",null,null,"","","",null,null,null,null,null,null,"",null,"",null,"",null,"",null,"",null,"",null,"",null,"",null,""]
["",null,null,"","","",null,null,null,null,null,null,"",null,"",null,"",null,"",null,"",null,"",null,"",null,"",null,""]
["",null,null,"","","",null,null,null,null,null,null,"",null,"",null,"",null,"",null,"",null,"",null,"",null,"",null,""]
["",null,null,"","","",null,null,null,null,null,null,"",null,"",null,"",null,"",null,"",null,"",null,"",null,"",null,""]
["",null,null,"","","",null,null,null,null,null,null,"",null,"",null,"",null,"",null,"",null,"",null,"",null,"",null,""]
["",null,null,"","","",null,null,null,null,null,null,"",null,"",null,"",null,"",null,"",null,"",null,"",null,"",null,""]
["",null,null,"","","",null,null,null,null,null,null,"",null,"",null,"",null,"",null,"",null,"",null,"",null,"",null,""]
["",null,null,"","","",null,null,null,null,null,null,"",null,"",null,"",null,"",null,"",null,"",null,"",null,"",null,""]
["",null,null,"","","",null,null,null,null,null,null,"",null,"",null,"",null,"",null,"",null,"",null,"",null,"",null,""]
["",null,null,"","","",null,null,null,null,null,null,"",null,"",null,"",null,"",null,"",null,"",null,"",null,"",null,""]
["",null,null,"","","",null,null,null,null,null,null,"",null,"",null,"",null,"",null,"",null,"",null,"",null,"",null,""]
["",null,null,"","","",null,null,null,null,null,null,"",null,"",null,"",null,"",null,"",null,"",null,"",null,"",null,""]
["",null,null,"","","",null,null,null,null,null,null,"",null,"",null,"",null,"",null,"",null,"",null,"",null,"",null,""]
["",null,null,"","","",null,null,null,null,null,null,"",null,"",null,"",null,"",null,"",null,"",null,"",null,"",null,""]
["",null,null,"","","",null,null,null,null,null,null,"",null,"",null,"",null,"",null,"",null,"",null,"",null,"",null,""]
["",null,null,"","","",null,null,null,null,null,null,"",null,"",null,"",null,"",null,"",null,"",null,"",null,"",null,""]
["",null,null,"","","",null,null,null,null,null,null,"",null,"",null,"",null,"",null,"",null,"",null,"",null,"",null,""]
["",null,null,"","","",null,null,null,null,null,null,"",null,"",null,"",null,"",null,"",null,"",null,"",null,"",null,""]
["",null,null,"","","",null,null,null,null,null,null,"",null,"",null,"",null,"",null,"",null,"",null,"",null,"",null,""]
["",null,null,"","","",null,null,null,null,null,null,"",null,"",null,"",null,"",null,"",null,"",null,"",null,"",null,""]
["",null,null,"","","",null,null,null,null,null,null,"",null,"",null,"",null,"",null,"",null,"",null,"",null,"",null,""]
["",null,null,"","","",null,null,null,null,null,null,"",null,"",null,"",null,"",null,"",null,"",null,"",null,"",null,""]
["",null,null,"","","",null,null,null,null,null,null,"",null,"",null,"",null,"",null,"",null,"",null,"",null,"",null,""]
["",null,null,"","","",null,null,null,null,null,null,"",null,"",null,"",null,"",null,"",null,"",null,"",null,"",null,""]
["",null,null,"","","",null,null,null,null,null,null,"",null,"",null,"",null,"",null,"",null,"",null,"",null,"",null,""]
["",null,null,"","","",null,null,null,null,null,null,"",null,"",null,"",null,"",null,"",null,"",null,"",null,"",null,""]
["",null,null,"","","",null,null,null,null,null,null,"",null,"",null,"",null,"",null,"",null,"",null,"",null,"",null,""]
["",null,null,"","","",null,null,null,null,null,null,"",null,"",null,"",null,"",null,"",null,"",null,"",null,"",null,""]
["",null,null,"","","",null,null,null,null,null,null,"",null,"",null,"",null,"",null,"",null,"",null,"",null,"",null,""]
["",null,null,"","","",null,null,null,null,null,null,"",null,"",null,"",null,"",null,"",null,"",null,"",null,"",null,""]
["",null,null,"","","",null,null,null,null,null,null,"",null,"",null,"",null,"",null,"",null,"",null,"",null,"",null,""]
["",null,null,"","","",null,null,null,null,null,null,"",null,"",null,"",null,"",null,"",null,"",null,"",null,"",null,""]
["",null,null,"","","",null,null,null,null,null,null,"",null,"",null,"",null,"",null,"",null,"",null,"",null,"",null,""]
["",null,null,"","","",null,null,null,null,null,null,"",null,"",null,"",null,"",null,"",null,"",null,"",null,"",null,""]
["",null,null,"","","",null,null,null,null,null,null,{"$f":"IF(ISBLANK(K408),\"\",K408)","v":""},null,{"$f":"IF(ISBLANK(K408),\"\",K408)","v":""},null,{"$f":"IF(ISBLANK(K408),\"\",K408)","v":""},null,{"$f":"IF(ISBLANK(K408),\"\",K408)","v":""},null,{"$f":"IF(ISBLANK(K408),\"\",K408)","v":""},null,{"$f":"IF(ISBLANK(K408),\"\",K408)","v":""},null,{"$f":"IF(ISBLANK(K408),\"\",K408)","v":""},null,{"$f":"IF(ISBLANK(K408),\"\",K408)","v":""},null,{"$f":"IF(ISBLANK(K408),\"\",K408)","v":""}]
["",null,null,"","","",null,null,null,null,null,null,"",null,"",null,"",null,"",null,"",null,"",null,"",null,"",null,""]
["",null,null,"","","",null,null,null,null,null,null,"",null,"",null,"",null,"",null,"",null,"",null,"",null,"",null,""]
["",null,null,"","","",null,null,null,null,null,null,"",null,"",null,"",null,"",null,"",null,"",null,"",null,"",null,""]
["",null,null,"","","",null,null,null,null,null,null,"",null,"",null,"",null,"",null,"",null,"",null,"",null,"",null,""]
["",null,null,"","","",null,null,null,null,null,null,"",null,"",null,"",null,"",null,"",null,"",null,"",null,"",null,""]
["",null,null,"","","",null,null,null,null,null,null,"",null,"",null,"",null,"",null,"",null,"",null,"",null,"",null,""]
["",null,null,"","","",null,null,null,null,null,null,"",null,"",null,"",null,"",null,"",null,"",null,"",null,"",null,""]
["",null,null,"","","",null,null,null,null,null,null,"",null,"",null,"",null,"",null,"",null,"",null,"",null,"",null,""]
["",null,null,"","","",null,null,null,null,null,null,"",null,"",null,"",null,"",null,"",null,"",null,"",null,"",null,""]
[{"$f":"IF(OR(NOT(ISBLANK(B417)),NOT(ISBLANK(C417)),NOT(ISBLANK(G417)),NOT(ISBLANK(H417)),NOT(ISBLANK(I417)),NOT(ISBLANK(J417)),NOT(ISBLANK(K417)),NOT(ISBLANK(L417)),NOT(ISBLANK(N417)),NOT(ISBLANK(P417)),NOT(ISBLANK(R417)),NOT(ISBLANK(T417)),NOT(ISBLANK(V417)),NOT(ISBLANK(X417)),NOT(ISBLANK(Z417)),NOT(ISBLANK(AB417))),ROW(A418)-ROW(Label.Aantal),\"\")","v":""},null,null,{"$f":"IF(OR(NOT(ISBLANK(B417)),NOT(ISBLANK(C417)),NOT(ISBLANK(G417)),NOT(ISBLANK(H417)),NOT(ISBLANK(I417)),NOT(ISBLANK(J417)),NOT(ISBLANK(K417)),NOT(ISBLANK(L417)),NOT(ISBLANK(N417)),NOT(ISBLANK(P417)),NOT(ISBLANK(R417)),NOT(ISBLANK(T417)),NOT(ISBLANK(V417)),NOT(ISBLANK(X417)),NOT(ISBLANK(Z417)),NOT(ISBLANK(AB417))),100,\"\")","v":""},{"$f":"IF(OR(NOT(ISBLANK(B417)),NOT(ISBLANK(C417)),NOT(ISBLANK(G417)),NOT(ISBLANK(H417)),NOT(ISBLANK(I417)),NOT(ISBLANK(J417)),NOT(ISBLANK(K417)),NOT(ISBLANK(L417)),NOT(ISBLANK(N417)),NOT(ISBLANK(P417)),NOT(ISBLANK(R417)),NOT(ISBLANK(T417)),NOT(ISBLANK(V417)),NOT(ISBLANK(X417)),NOT(ISBLANK(Z417)),NOT(ISBLANK(AB417))),\"x\",\"\")","v":""},{"$f":"IF(OR(NOT(ISBLANK(B417)),NOT(ISBLANK(C417)),NOT(ISBLANK(G417)),NOT(ISBLANK(H417)),NOT(ISBLANK(I417)),NOT(ISBLANK(J417)),NOT(ISBLANK(K417)),NOT(ISBLANK(L417)),NOT(ISBLANK(N417)),NOT(ISBLANK(P417)),NOT(ISBLANK(R417)),NOT(ISBLANK(T417)),NOT(ISBLANK(V417)),NOT(ISBLANK(X417)),NOT(ISBLANK(Z417)),NOT(ISBLANK(AB417))),50,\"\")","v":""},null,null,null,null,null,null,"",null,"",null,"",null,"",null,"",null,"",null,"",null,"",null,""]
["",null,null,"","","",null,null,null,null,null,null,"",null,"",null,"",null,"",null,"",null,"",null,"",null,"",null,""]
["",null,null,"","","",null,null,null,null,null,null,"",null,"",null,"",null,"",null,"",null,"",null,"",null,"",null,""]
["",null,null,"","","",null,null,null,null,null,null,"",null,"",null,"",null,"",null,"",null,"",null,"",null,"",null,""]
["",null,null,"","","",null,null,null,null,null,null,"",null,"",null,"",null,"",null,"",null,"",null,"",null,"",null,""]
["",null,null,"","","",null,null,null,null,null,null,"",null,"",null,"",null,"",null,"",null,"",null,"",null,"",null,""]
["",null,null,"","","",null,null,null,null,null,null,"",null,"",null,"",null,"",null,"",null,"",null,"",null,"",null,""]
["",null,null,"","","",null,null,null,null,null,null,"",null,"",null,"",null,"",null,"",null,"",null,"",null,"",null,""]
["",null,null,"","","",null,null,null,null,null,null,"",null,"",null,"",null,"",null,"",null,"",null,"",null,"",null,""]
["",null,null,"","","",null,null,null,null,null,null,"",null,"",null,"",null,"",null,"",null,"",null,"",null,"",null,""]
["",null,null,"","","",null,null,null,null,null,null,"",null,"",null,"",null,"",null,"",null,"",null,"",null,"",null,""]
["",null,null,"","","",null,null,null,null,null,null,"",null,"",null,"",null,"",null,"",null,"",null,"",null,"",null,""]
["",null,null,"","","",null,null,null,null,null,null,"",null,"",null,"",null,"",null,"",null,"",null,"",null,"",null,""]
["",null,null,"","","",null,null,null,null,null,null,"",null,"",null,"",null,"",null,"",null,"",null,"",null,"",null,""]
["",null,null,"","","",null,null,null,null,null,null,"",null,"",null,"",null,"",null,"",null,"",null,"",null,"",null,""]
["",null,null,"","","",null,null,null,null,null,null,"",null,"",null,"",null,"",null,"",null,"",null,"",null,"",null,""]
["",null,null,"","","",null,null,null,null,null,null,"",null,"",null,"",null,"",null,"",null,"",null,"",null,"",null,""]
["",null,null,"","","",null,null,null,null,null,null,"",null,"",null,"",null,"",null,"",null,"",null,"",null,"",null,""]
["",null,null,"","","",null,null,null,null,null,null,"",null,"",null,"",null,"",null,"",null,"",null,"",null,"",null,""]
["",null,null,"","","",null,null,null,null,null,null,"",null,"",null,"",null,"",null,"",null,"",null,"",null,"",null,""]
["",null,null,"","","",null,null,null,null,null,null,"",null,"",null,"",null,"",null,"",null,"",null,"",null,"",null,""]
["",null,null,"","","",null,null,null,null,null,null,"",null,"",null,"",null,"",null,"",null,"",null,"",null,"",null,""]
["",null,null,"","","",null,null,null,null,null,null,"",null,"",null,"",null,"",null,"",null,"",null,"",null,"",null,""]
["",null,null,"","","",null,null,null,null,null,null,"",null,"",null,"",null,"",null,"",null,"",null,"",null,"",null,""]
["",null,null,"","","",null,null,null,null,null,null,"",null,"",null,"",null,"",null,"",null,"",null,"",null,"",null,""]
["",null,null,"","","",null,null,null,null,null,null,"",null,"",null,"",null,"",null,"",null,"",null,"",null,"",null,""]
["",null,null,"","","",null,null,null,null,null,null,"",null,"",null,"",null,"",null,"",null,"",null,"",null,"",null,""]
["",null,null,"","","",null,null,null,null,null,null,"",null,"",null,"",null,"",null,"",null,"",null,"",null,"",null,""]
["",null,null,"","","",null,null,null,null,null,null,"",null,"",null,"",null,"",null,"",null,"",null,"",null,"",null,""]
["",null,null,"","","",null,null,null,null,null,null,"",null,"",null,"",null,"",null,"",null,"",null,"",null,"",null,""]
["",null,null,"","","",null,null,null,null,null,null,"",null,"",null,"",null,"",null,"",null,"",null,"",null,"",null,""]
["",null,null,"","","",null,null,null,null,null,null,"",null,"",null,"",null,"",null,"",null,"",null,"",null,"",null,""]
["",null,null,"","","",null,null,null,null,null,null,"",null,"",null,"",null,"",null,"",null,"",null,"",null,"",null,""]
["",null,null,"","","",null,null,null,null,null,null,"",null,"",null,"",null,"",null,"",null,"",null,"",null,"",null,""]
["",null,null,"","","",null,null,null,null,null,null,"",null,"",null,"",null,"",null,"",null,"",null,"",null,"",null,""]
["",null,null,"","","",null,null,null,null,null,null,"",null,"",null,"",null,"",null,"",null,"",null,"",null,"",null,""]
["",null,null,"","","",null,null,null,null,null,null,"",null,"",null,"",null,"",null,"",null,"",null,"",null,"",null,""]
["",null,null,"","","",null,null,null,null,null,null,"",null,"",null,"",null,"",null,"",null,"",null,"",null,"",null,""]
["",null,null,"","","",null,null,null,null,null,null,"",null,"",null,"",null,"",null,"",null,"",null,"",null,"",null,""]
["",null,null,"","","",null,null,null,null,null,null,"",null,"",null,"",null,"",null,"",null,"",null,"",null,"",null,""]
["",null,null,"","","",null,null,null,null,null,null,"",null,"",null,"",null,"",null,"",null,"",null,"",null,"",null,""]
["",null,null,"","","",null,null,null,null,null,null,"",null,"",null,"",null,"",null,"",null,"",null,"",null,"",null,""]
["",null,null,"","","",null,null,null,null,null,null,"",null,"",null,"",null,"",null,"",null,"",null,"",null,"",null,""]
["",null,null,"","","",null,null,null,null,null,null,"",null,"",null,"",null,"",null,"",null,"",null,"",null,"",null,""]
["",null,null,"","","",null,null,null,null,null,null,"",null,"",null,"",null,"",null,"",null,"",null,"",null,"",null,""]
["",null,null,"","","",null,null,null,null,null,null,"",null,"",null,"",null,"",null,"",null,"",null,"",null,"",null,""]
["",null,null,"","","",null,null,null,null,null,null,"",null,"",null,"",null,"",null,"",null,"",null,"",null,"",null,""]
["",null,null,"","","",null,null,null,null,null,null,"",null,"",null,"",null,"",null,"",null,"",null,"",null,"",null,""]
["",null,null,"","","",null,null,null,null,null,null,"",null,"",null,"",null,"",null,"",null,"",null,"",null,"",null,""]
["",null,null,"","","",null,null,null,null,null,null,"",null,"",null,"",null,"",null,"",null,"",null,"",null,"",null,""]
["",null,null,"","","",null,null,null,null,null,null,"",null,"",null,"",null,"",null,"",null,"",null,"",null,"",null,""]
["",null,null,"","","",null,null,null,null,null,null,"",null,"",null,"",null,"",null,"",null,"",null,"",null,"",null,""]
["",null,null,"","","",null,null,null,null,null,null,"",null,"",null,"",null,"",null,"",null,"",null,"",null,"",null,""]
["",null,null,"","","",null,null,null,null,null,null,"",null,"",null,"",null,"",null,"",null,"",null,"",null,"",null,""]
["",null,null,"","","",null,null,null,null,null,null,{"$f":"IF(ISBLANK(K472),\"\",K472)","v":""},null,{"$f":"IF(ISBLANK(K472),\"\",K472)","v":""},null,{"$f":"IF(ISBLANK(K472),\"\",K472)","v":""},null,{"$f":"IF(ISBLANK(K472),\"\",K472)","v":""},null,{"$f":"IF(ISBLANK(K472),\"\",K472)","v":""},null,{"$f":"IF(ISBLANK(K472),\"\",K472)","v":""},null,{"$f":"IF(ISBLANK(K472),\"\",K472)","v":""},null,{"$f":"IF(ISBLANK(K472),\"\",K472)","v":""},null,{"$f":"IF(ISBLANK(K472),\"\",K472)","v":""}]
["",null,null,"","","",null,null,null,null,null,null,"",null,"",null,"",null,"",null,"",null,"",null,"",null,"",null,""]
["",null,null,"","","",null,null,null,null,null,null,"",null,"",null,"",null,"",null,"",null,"",null,"",null,"",null,""]
["",null,null,"","","",null,null,null,null,null,null,"",null,"",null,"",null,"",null,"",null,"",null,"",null,"",null,""]
["",null,null,"","","",null,null,null,null,null,null,"",null,"",null,"",null,"",null,"",null,"",null,"",null,"",null,""]
["",null,null,"","","",null,null,null,null,null,null,"",null,"",null,"",null,"",null,"",null,"",null,"",null,"",null,""]
["",null,null,"","","",null,null,null,null,null,null,"",null,"",null,"",null,"",null,"",null,"",null,"",null,"",null,""]
["",null,null,"","","",null,null,null,null,null,null,"",null,"",null,"",null,"",null,"",null,"",null,"",null,"",null,""]
["",null,null,"","","",null,null,null,null,null,null,"",null,"",null,"",null,"",null,"",null,"",null,"",null,"",null,""]
["",null,null,"","","",null,null,null,null,null,null,"",null,"",null,"",null,"",null,"",null,"",null,"",null,"",null,""]
[{"$f":"IF(OR(NOT(ISBLANK(B481)),NOT(ISBLANK(C481)),NOT(ISBLANK(G481)),NOT(ISBLANK(H481)),NOT(ISBLANK(I481)),NOT(ISBLANK(J481)),NOT(ISBLANK(K481)),NOT(ISBLANK(L481)),NOT(ISBLANK(N481)),NOT(ISBLANK(P481)),NOT(ISBLANK(R481)),NOT(ISBLANK(T481)),NOT(ISBLANK(V481)),NOT(ISBLANK(X481)),NOT(ISBLANK(Z481)),NOT(ISBLANK(AB481))),ROW(A482)-ROW(Label.Aantal),\"\")","v":""},null,null,{"$f":"IF(OR(NOT(ISBLANK(B481)),NOT(ISBLANK(C481)),NOT(ISBLANK(G481)),NOT(ISBLANK(H481)),NOT(ISBLANK(I481)),NOT(ISBLANK(J481)),NOT(ISBLANK(K481)),NOT(ISBLANK(L481)),NOT(ISBLANK(N481)),NOT(ISBLANK(P481)),NOT(ISBLANK(R481)),NOT(ISBLANK(T481)),NOT(ISBLANK(V481)),NOT(ISBLANK(X481)),NOT(ISBLANK(Z481)),NOT(ISBLANK(AB481))),100,\"\")","v":""},{"$f":"IF(OR(NOT(ISBLANK(B481)),NOT(ISBLANK(C481)),NOT(ISBLANK(G481)),NOT(ISBLANK(H481)),NOT(ISBLANK(I481)),NOT(ISBLANK(J481)),NOT(ISBLANK(K481)),NOT(ISBLANK(L481)),NOT(ISBLANK(N481)),NOT(ISBLANK(P481)),NOT(ISBLANK(R481)),NOT(ISBLANK(T481)),NOT(ISBLANK(V481)),NOT(ISBLANK(X481)),NOT(ISBLANK(Z481)),NOT(ISBLANK(AB481))),\"x\",\"\")","v":""},{"$f":"IF(OR(NOT(ISBLANK(B481)),NOT(ISBLANK(C481)),NOT(ISBLANK(G481)),NOT(ISBLANK(H481)),NOT(ISBLANK(I481)),NOT(ISBLANK(J481)),NOT(ISBLANK(K481)),NOT(ISBLANK(L481)),NOT(ISBLANK(N481)),NOT(ISBLANK(P481)),NOT(ISBLANK(R481)),NOT(ISBLANK(T481)),NOT(ISBLANK(V481)),NOT(ISBLANK(X481)),NOT(ISBLANK(Z481)),NOT(ISBLANK(AB481))),50,\"\")","v":""},null,null,null,null,null,null,"",null,"",null,"",null,"",null,"",null,"",null,"",null,"",null,""]
["",null,null,"","","",null,null,null,null,null,null,"",null,"",null,"",null,"",null,"",null,"",null,"",null,"",null,""]
["",null,null,"","","",null,null,null,null,null,null,"",null,"",null,"",null,"",null,"",null,"",null,"",null,"",null,""]
["",null,null,"","","",null,null,null,null,null,null,"",null,"",null,"",null,"",null,"",null,"",null,"",null,"",null,""]
["",null,null,"","","",null,null,null,null,null,null,"",null,"",null,"",null,"",null,"",null,"",null,"",null,"",null,""]
["",null,null,"","","",null,null,null,null,null,null,"",null,"",null,"",null,"",null,"",null,"",null,"",null,"",null,""]
["",null,null,"","","",null,null,null,null,null,null,"",null,"",null,"",null,"",null,"",null,"",null,"",null,"",null,""]
["",null,null,"","","",null,null,null,null,null,null,"",null,"",null,"",null,"",null,"",null,"",null,"",null,"",null,""]
["",null,null,"","","",null,null,null,null,null,null,"",null,"",null,"",null,"",null,"",null,"",null,"",null,"",null,""]
["",null,null,"","","",null,null,null,null,null,null,"",null,"",null,"",null,"",null,"",null,"",null,"",null,"",null,""]
["",null,null,"","","",null,null,null,null,null,null,"",null,"",null,"",null,"",null,"",null,"",null,"",null,"",null,""]
["",null,null,"","","",null,null,null,null,null,null,"",null,"",null,"",null,"",null,"",null,"",null,"",null,"",null,""]
["",null,null,"","","",null,null,null,null,null,null,"",null,"",null,"",null,"",null,"",null,"",null,"",null,"",null,""]
["",null,null,"","","",null,null,null,null,null,null,"",null,"",null,"",null,"",null,"",null,"",null,"",null,"",null,""]
["",null,null,"","","",null,null,null,null,null,null,"",null,"",null,"",null,"",null,"",null,"",null,"",null,"",null,""]
["",null,null,"","","",null,null,null,null,null,null,"",null,"",null,"",null,"",null,"",null,"",null,"",null,"",null,""]
["",null,null,"","","",null,null,null,null,null,null,"",null,"",null,"",null,"",null,"",null,"",null,"",null,"",null,""]
["",null,null,"","","",null,null,null,null,null,null,"",null,"",null,"",null,"",null,"",null,"",null,"",null,"",null,""]
["",null,null,"","","",null,null,null,null,null,null,"",null,"",null,"",null,"",null,"",null,"",null,"",null,"",null,""]
["",null,null,"","","",null,null,null,null,null,null,"",null,"",null,"",null,"",null,"",null,"",null,"",null,"",null,""]
["",null,null,"","","",null,null,null,null,null,null,"",null,"",null,"",null,"",null,"",null,"",null,"",null,"",null,""]
["",null,null,"","","",null,null,null,null,null,null,"",null,"",null,"",null,"",null,"",null,"",null,"",null,"",null,""]
["",null,null,"","","",null,null,null,null,null,null,"",null,"",null,"",null,"",null,"",null,"",null,"",null,"",null,""]
["",null,null,"","","",null,null,null,null,null,null,"",null,"",null,"",null,"",null,"",null,"",null,"",null,"",null,""]
["",null,null,"","","",null,null,null,null,null,null,"",null,"",null,"",null,"",null,"",null,"",null,"",null,"",null,""]
["",null,null,"","","",null,null,null,null,null,null,"",null,"",null,"",null,"",null,"",null,"",null,"",null,"",null,""]
["",null,null,"","","",null,null,null,null,null,null,"",null,"",null,"",null,"",null,"",null,"",null,"",null,"",null,""]
["",null,null,"","","",null,null,null,null,null,null,"",null,"",null,"",null,"",null,"",null,"",null,"",null,"",null,""]
["",null,null,"","","",null,null,null,null,null,null,"",null,"",null,"",null,"",null,"",null,"",null,"",null,"",null,""]
["",null,null,"","","",null,null,null,null,null,null,"",null,"",null,"",null,"",null,"",null,"",null,"",null,"",null,""]
["",null,null,"","","",null,null,null,null,null,null,"",null,"",null,"",null,"",null,"",null,"",null,"",null,"",null,""]
["",null,null,"","","",null,null,null,null,null,null,"",null,"",null,"",null,"",null,"",null,"",null,"",null,"",null,""]
["",null,null,"","","",null,null,null,null,null,null,"",null,"",null,"",null,"",null,"",null,"",null,"",null,"",null,""]
["",null,null,"","","",null,null,null,null,null,null,"",null,"",null,"",null,"",null,"",null,"",null,"",null,"",null,""]
["",null,null,"","","",null,null,null,null,null,null,"",null,"",null,"",null,"",null,"",null,"",null,"",null,"",null,""]
["",null,null,"","","",null,null,null,null,null,null,"",null,"",null,"",null,"",null,"",null,"",null,"",null,"",null,""]
["",null,null,"","","",null,null,null,null,null,null,"",null,"",null,"",null,"",null,"",null,"",null,"",null,"",null,""]
["",null,null,"","","",null,null,null,null,null,null,"",null,"",null,"",null,"",null,"",null,"",null,"",null,"",null,""]
["",null,null,"","","",null,null,null,null,null,null,"",null,"",null,"",null,"",null,"",null,"",null,"",null,"",null,""]
["",null,null,"","","",null,null,null,null,null,null,"",null,"",null,"",null,"",null,"",null,"",null,"",null,"",null,""]
["",null,null,"","","",null,null,null,null,null,null,"",null,"",null,"",null,"",null,"",null,"",null,"",null,"",null,""]
["",null,null,"","","",null,null,null,null,null,null,"",null,"",null,"",null,"",null,"",null,"",null,"",null,"",null,""]

{"sheet":"Instructies","index":1,"n_rows":16,"n_cols":6,"rows_kept":16,"cut":false,"hidden":false,"merged":[[0,1,0,9],[11,1,11,9],[1,1,1,9],[2,1,2,11],[3,1,3,11],[4,1,4,11],[5,1,5,11],[6,1,6,11],[7,1,7,11],[8,1,8,11],[9,1,9,11],[10,1,10,11]]}
[null,"Instructies bestelformulier logoplaatjes 100x50mm"]
[]
[null,"De Verver-Best coderingsplaatje met uw bedrijfslogo kunt u bij ons laten voordrukken vanaf 288 stuks. Wij houden deze voor u op voorraad. U kunt eenvoudig per project uw bestelling plaatsen door uw coderingen in dit bestelformulier in te vullen. Heeft u nog geen logoplaatjes bij ons op voorraad? Neem dan contact op via info@ververbest.nl voor een vrijblijvende offerte."]
[null,"De logoplaatjes zijn standaard 100x50mm en worden gemaakt van 2-laags kunststof met een dikte van 0,8mm. Het materiaal is wit/zwart van kleur, wat betekent dat het plaatje wit is en de gravure zwart. "]
[null,"LET OP! Controleer de teksten goed! De teksten worden gegraveerd zoals deze worden aangeleverd. Verver-Best is niet aansprakelijk voor tekstuele fouten wegens foutieve aanlevering. Indien de tekstregel niet volledig op één regel past, zal deze worden afgebroken en verdeeld worden over meerdere regels."]
[null,"Logoplaatjes van 100x50mm zijn perfect geschikt voor gebruik in een Schildfix naamplaathouder. Klik op [Brochure Schildfix] om het assortiment te bekijken. U kunt deze houders tevens toevoegen aan uw aanvraag in het bestelformulier onder vermelding van het artikelnummer."]
[null,"Onderaan dit instructieformulier vindt u de staffelprijzen van de logoplaatjes. Deze korting zullen wij meenemen in uw offerte of bestelling."]
[null,"Druk op de knop [Naar het bestelformulier] om naar het bestelformulier te gaan. Hier kunt u uw gegevens en aanvraag invullen.\nTIP! Vul uw gegevens eenmalig in op het bestelformulier en sla het vervolgens op. Op deze manier hoeft u niet iedere keer uw gegevens opnieuw in te vullen."]
[null,"Indien u de bestelling wilt versturen of een offerte wilt aanvragen, kunt u in het bestelformulier op de knop [Verstuur bestelling] of \n[Vraag offerte aan] drukken. Uw ingevulde bestelformulier wordt vervolgens automatisch per mail naar ons verstuurd. Op werkdagen ontvangt u binnen 48 uur een reactie op uw bestelling of offerteaanvraag. Het is ook mogelijk om het formulier op te slaan en handmatig te mailen naar info@ververbest.nl. Uiteraard kunt u ons op dit e-mailadres ook bereiken voor vragen omtrent uw bestelling via het bestelformulier."]
[null,"Bij orders met een netto orderbedrag van minder dan €200,00 worden er kleine orderkosten in rekening gebracht:\nNetto orderwaarde < €75,00: kleine orderkosten €25,00\nNetto orderwaarde €75,00 tot €150,00: kleine orderkosten €20,00\nNetto orderwaarde €150,00 tot €200,00: kleine orderkosten €15,00\nDe verzendkosten van bestellingen tot 15 kilogram bedragen €15,00 voor verzending binnen Nederland. Prijzen voor zwaardere pakketten en afleveradressen buiten Nederland zijn op aanvraag. Onderaan dit instructieformulier vindt u de staffelprijzen van de logoplaatjes. Deze korting zullen wij meenemen in uw offerte of bestelling. "]
[null,"Alle genoemde prijzen in dit bestelformulier zijn exclusief btw.\nIngang bestelformulier met bijbehorende kortingsstaffels: 01-06-2024."]
[]
[null,null,null,null,"Staffelprijzen totaalbedrag logoplaatjes 100x50mm","Korting"]
[null,null,null,null,"€750 tot €1250","5%"]
[null,null,null,null,"€1250 tot €2000","7,5%"]
[null,null,null,null,"€2000 en hoger",0.15]

{"sheet":"Productiebestand","index":2,"n_rows":6,"n_cols":27,"rows_kept":6,"cut":false,"hidden":true,"merged":[]}
["Tekstregel 1","Tekstregel 2","Tekstregel 3","Tekstregel 4","Tekstregel 5","Tekstregel 6","Tekstregel 7","Tekstregel 8","Tekstregel 9",null,null,null,null,null,null,null,null,null,null,null,null,null,null,null,null,null,"Gebundeld per logo en per afmeting"]
[null,null,null,null,null,null,null,null,null,null,null,null,null,null,null,null,null,null,null,null,null,null,null,null,null,null,"Elke bestelregel apart"]
[null,null,null,null,null,null,null,null,null,null,null,null,null,null,null,null,null,null,null,null,null,null,null,null,null,null,"Gebundeld per afmeting"]
[null,null,null,null,null,null,null,null,null,null,null,null,null,null,null,null,null,null,null,null,null,null,null,null,null,null,"Gebundeld per logo en per afmeting"]
[null,null,null,null,null,null,null,null,null,null,null,null,null,null,null,null,null,null,null,null,null,null,null,null,null,null,"Gebundeld per logo"]
[null,null,null,null,null,null,null,null,null,null,null,null,null,null,null,null,null,null,null,null,null,null,null,null,null,null,"Alle bestelregels gebundeld"]

{"sheet":"Artikelen","index":3,"n_rows":13,"n_cols":4,"rows_kept":13,"cut":false,"hidden":true,"merged":[]}
[]
[null,"Houders","Spanbanden","Sluitgespen"]
[null,"60015 - Schroefhouder nr 10 verzinkt","51132 - Spanband Polyprop 12.7mm zwart rol/30.5m","51134 - Sluitgesp polyprop 12.7mm zwart. p. stuk"]
[null,"60016 - Schroefhouder nr 14 RVS","51133 - Spanband Polypr 12.7mm zwart. per meter","51135 - Sluitgesp polyprop 12.7mm zwart zak/25st"]
[null,"60017 - Aanlashouder nr 20 verzinkt","60208 - Spanband verzinkt staal 9mmx25m"]
[null,"60018 - Sokkelhouder nr 30 verzinkt","60209 - Spanband verzinkt staal 9mm. per meter"]
[null,"60019 - Sokkelhouder nr 31 verzinkt","60210 - Spanband RVS 9mmx25m"]
[null,"60020 - Sokkelhouder nr 34 RVS","60211 - Spanband RVS 9mm. per meter"]
[null,"60021 - Sokkelhouder nr 35 RVS","60212 - Spanband verzinkt staal 11mmx25m"]
[null,"60022 - Klemhouder nr 80 verzinkt","60213 - Spanband verzinkt 11mmx10m"]
[null,"60023 - Klemhouder nr 84 RVS","60214 - Spanband verzinkt staal 11mm. per meter"]
[null,"60024 - Schuifhouder nr 90 verzinkt","60215 - Spanband RVS 11mmx25m"]
[null,null,"60216 - Spanband RVS 11mm. per meter"]